Cogmind - Beta 16 @@@ ROGUE MODE // 2025.12.27 @ 16:12:11 Player: aoemica Result: Escaped! Performance ------------- Evolutions (9) 4500 Regions Visited (31) 6200 Robots Destroyed (501) 2505 Value Destroyed (23148) 23148 Prototype IDs (82) 1640 Alien Tech Used (2) 400 Bonus (12723) 12723 TOTAL SCORE: 51116 Bonus ------- High Alert Combat Kills 3026 Follower Combat Kills 2122 Entered Garrisons 200 Network Hubs Disabled 400 Aligned with FarCom 300 Met Data Miner 300 Met Imprinter 300 Acquired ECA 300 Built Enhanced Grunts 300 Met R17 at Cetus 500 Found Hidden Lab 3000 Met R17 at Research 2000 Win 3000 Friendly Fire -3025 Cogmind --------- Core Integrity 1462/1600 Matter 270/300 Energy 575/600 System Corruption 13% Temperature Cool (16) Movement Walking (114) Location To Epsilon Eridani Parts ------- > --- POWER (3) -------- Quantum Reactor Quantum Reactor > --- PROPULSION (8) --- Myomer Leg Myomer Leg Myomer Leg Myomer Leg Myomer Leg Centrium Leg Centrium Leg Centrium Leg > --- UTILITY (11) ----- Improved Cooling System Improved Cooling System Huge Storage Unit Advanced Targeting Computer Core Analyzer Experimental Reaction Control System Centrium Medium Armor Plating Centrium Medium Armor Plating Experimental Powered Armor Graphene Brace Improved Focal Shield > --- WEAPON (4) ------- Enhanced Nova Cannon Warp Cannon XL Autogun Subcomponent Advanced Remote Datajack > --- INVENTORY (25) --- Faulty Improved Quantum Reactor Biometal Leg Biometal Leg Advanced Energy Well (500) Matter Compressor (250) Advanced Terrain Scanner Centrium Medium Armor Plating High-powered Tractor Beam Splice Drone Bay (3/6) Transdimensional Reconstructor Compact HERF Cannon Enhanced Nova Cannon Multirail Multirail Tesla Bomb Launcher Fusion Bomb Launcher Peak State ------------ > --- POWER ------------ Quantum Reactor Quantum Reactor Light Quantum Reactor > --- PROPULSION ------- Thunder Leg Shield Leg Experimental Myomer Leg Experimental Myomer Leg Centrium Leg Centrium Leg Heavy Shield Leg > --- UTILITY ---------- Improved Cooling System Huge Storage Unit Advanced Terrain Scan Processor Advanced Targeting Computer Core Analyzer Advanced Recoil Stabilizer Centrium Medium Armor Plating Experimental Powered Armor Shield Generator System Mapper Deep Network Scanner > --- WEAPON ----------- XL Autogun Subcomponent Advanced KE Penetrator Multirail Fusion Bomb Launcher > --- INVENTORY -------- Quantum Reactor Improved Quantum Reactor Centrium Leg Centrium Leg Improved Cooling System Advanced Energy Well Matter Compressor Advanced Terrain Scanner Experimental Reaction Control System Centrium Medium Armor Plating Centrium Medium Armor Plating Centrium Medium Armor Plating Graphene Brace Improved Focal Shield High-powered Tractor Beam Splice Drone Bay Transdimensional Reconstructor Compact HERF Cannon Enhanced Nova Cannon Warp Cannon XL Autogun Subcomponent Multirail Tesla Bomb Launcher Advanced Remote Datajack [Rating: 210] Favorites ----------- Power Quantum Reactor Engine Light Ion Engine Power Core Nuclear Core Reactor Quantum Reactor Propulsion Enhanced Flexi-carbon Leg Leg Enhanced Flexi-carbon Leg Utility Improved Cooling System Device Improved Cooling System Storage High-capacity Storage Unit Processor Core Analyzer Hackware System Mapper Protection Centrium Medium Armor Plating Weapon Advanced KE Penetrator Energy Gun Precision Beam Rifle Energy Cannon Neutron Cannon Ballistic Gun Advanced KE Penetrator Ballistic Cannon Hypervelocity Gauss Cannon Launcher Long-range Missile Launcher Special Weapon Advanced Remote Datajack Piercing Weapon Heavy Pick Special Melee Weapon Datajack Build | -11 -10 -10 -9 -9 -9 -8 -8 -8 -8 -8 -7 -7 -7 -7 -6 -6 -6 -6 -6 -5 -5 -5 -5 -5 -5 -4 -4 -4 -3 -2 -1 ------- Run | Yrd Mat Min Mat Min Exi Min Mat Gar Mat Sto Fac Low Low Zio Pro Fac Low Low Dat Pro Fac Ext Cet Arc Hub Fac Arm Lab Res Res Acc Slots Evolved 18 | . . . 2 . . . 2 . . . 2 . . . . 2 . . . . 2 . . . . 2 . . 2 2 2 Power 2 | . . . . . . . . . . . . . . . . 1 . . . . . . . . . . . . . 1 . Propulsion 5 | . . . 1 . . . 1 . . . 1 . . . . . . . . . . . . . . 1 . . . . 1 Utility 9 | . . . . . . . 1 . . . 1 . . . . . . . . . 2 . . . . 1 . . 2 1 1 Weapon 2 | . . . 1 . . . . . . . . . . . . 1 . . . . . . . . . . . . . . . Parts Attached 233 | 1 4 3 23 6 1 12 8 15 7 2 7 . 2 3 2 19 3 2 16 2 6 5 8 1 3 7 8 4 19 14 20 Power 27 | . . . 2 1 . 1 . 3 1 . 1 . . . . 2 . 1 2 . . 1 1 . 1 1 2 . 2 2 3 Engine 7 | . . . 2 1 . . . 2 1 . . . . . . . . 1 . . . . . . . . . . . . . Core 7 | . . . . . . 1 . 1 . . 1 . . . . 2 . . . . . 1 . . 1 . . . . . . Reactor 13 | . . . . . . . . . . . . . . . . . . . 2 . . . 1 . . 1 2 . 2 2 3 Propulsion 73 | . 1 . 10 4 . 7 2 7 1 2 2 . 2 1 . 8 . . 5 . 1 . . . 1 1 1 1 6 4 6 Treads . | . . . . . . . . . . . . . . . . . . . . . . . . . . . . . . . . Leg 73 | . 1 . 10 4 . 7 2 7 1 2 2 . 2 1 . 8 . . 5 . 1 . . . 1 1 1 1 6 4 6 Wheel . | . . . . . . . . . . . . . . . . . . . . . . . . . . . . . . . . Hover . | . . . . . . . . . . . . . . . . . . . . . . . . . . . . . . . . Flight . | . . . . . . . . . . . . . . . . . . . . . . . . . . . . . . . . Utility 74 | 1 1 2 4 . . 2 1 1 1 . 4 . . . 1 7 2 . 7 2 5 3 2 . 1 2 3 1 10 6 5 Device 40 | 1 . 2 3 . . 2 1 . 1 . 1 . . . 1 4 1 . 4 1 4 2 1 . 1 . 3 . 4 . 3 Storage 6 | . 1 . 1 . . . . . . . . . . . . 1 . . 1 . 1 . . . . . . . . 1 . Processor 8 | . . . . . . . . . . . 2 . . . . 1 1 . . . . . . . . 2 . . 1 1 . Hackware 4 | . . . . . . . . . . . . . . . . . . . . . . . . . . . . . 1 3 . Protection 16 | . . . . . . . . 1 . . 1 . . . . 1 . . 2 1 . 1 1 . . . . 1 4 1 2 Artifact . | . . . . . . . . . . . . . . . . . . . . . . . . . . . . . . . . Weapon 59 | . 2 1 7 1 1 2 5 4 4 . . . . 2 1 2 1 1 2 . . 1 5 1 . 3 2 2 1 2 6 Energy Gun 11 | . . . 2 . . 1 1 2 3 . . . . . . . . . . . . . 1 . . . . 1 . . . Energy Cannon 9 | . . . . . . . 1 . . . . . . 1 . . 1 . 2 . . . . . . . . 1 . 1 2 Ballistic Gun 24 | . 2 . 5 . . 1 3 1 1 . . . . . . 1 . . . . . . 3 . . 3 2 . . . 2 Ballistic Cannon 2 | . . . . . . . . . . . . . . . . . . . . . . . 1 . . . . . 1 . . Launcher 5 | . . . . 1 . . . 1 . . . . . . . . . . . . . 1 . . . . . . . 1 1 Special Weapon 5 | . . 1 . . . . . . . . . . . 1 1 . . 1 . . . . . . . . . . . . 1 Impact Weapon . | . . . . . . . . . . . . . . . . . . . . . . . . . . . . . . . . Slashing Weapon . | . . . . . . . . . . . . . . . . . . . . . . . . . . . . . . . . Piercing Weapon 1 | . . . . . . . . . . . . . . . . 1 . . . . . . . . . . . . . . . Special Melee Weapon 2 | . . . . . 1 . . . . . . . . . . . . . . . . . . 1 . . . . . . . Unidentified Prototypes 25 | . . 1 . . . . 2 . 1 . . . . 1 . . 1 . 4 . . . 3 . . 1 . 5 4 . 2 Corrupted Parts 1 | . . . . . . . . . . . . . . . . . . . 1 . . . . . . . . . . . . System Corruption 2 | . . . . . . . . . . . . . . . . . . . 2 . . . . . . . . . . . . Parts Lost 39 | . . . 2 2 . 1 1 2 . . . . 1 . . 2 . . 9 . . 1 . . . . 2 . 1 1 14 Power 7 | . . . . . . . . 1 . . . . . . . 1 . . 2 . . . . . . . 1 . . . 2 Propulsion 14 | . . . . 1 . . . . . . . . 1 . . 1 . . 5 . . . . . . . . . . . 6 Utility 10 | . . . . . . . . 1 . . . . . . . . . . 1 . . 1 . . . . 1 . 1 1 4 Weapon 8 | . . . 2 1 . 1 1 . . . . . . . . . . . 1 . . . . . . . . . . . 2 Highest Loss Streak 6 | . . . 1 2 . 1 1 1 . . . . 1 . . 2 . . 4 . . 1 . . . . 1 . 1 1 6 To Critical Strikes 3 | . . . . . . . . . . . . . . . . . . . . . . . . . . . . . . . 3 Average Backups 15 | 2 8 10 13 14 13 11 11 11 11 12 11 12 12 12 12 14 20 19 16 20 19 19 17 19 20 19 19 13 19 21 21 Power . | 1 1 1 . 1 1 1 1 . 1 1 1 1 1 1 1 . 1 . . . . 1 1 1 . . . . . . 1 Propulsion 1 | . . 2 2 2 2 1 1 2 1 2 1 2 2 2 2 2 2 2 1 . . . 2 2 2 1 1 . 1 1 . Utility 7 | . 1 2 3 5 6 6 4 3 3 3 2 3 3 3 4 4 6 7 6 13 11 11 10 10 11 12 13 9 13 12 10 Weapon 5 | 1 4 4 5 5 4 2 3 5 5 6 6 6 6 5 5 7 10 9 8 7 6 6 3 6 6 5 5 1 3 4 6 Tool/Special . | . . . . . . . . . . . . . . . . . . . . . . . . . . . . . . . . Unused Backups 55 | 10 2 . 8 1 1 . 1 . 1 . 6 . . . . 2 1 . 1 . 1 5 2 . 1 2 . . 5 1 4 Power 11 | 1 . . 1 . . . . . . . 5 . . . . . . . . . . 2 . . . 1 . . . . 1 Propulsion 11 | 6 . . . . . . . . . . . . . . . 1 . . . . . 2 . . 1 . . . 1 . . Utility 15 | 1 1 . 1 . . . 1 . 1 . . . . . . 1 . . 1 . 1 . 1 . . 1 . . 2 1 2 Weapon 16 | 2 1 . 6 1 1 . . . . . 1 . . . . . 1 . . . . 1 1 . . . . . 1 . . Tool/Special 2 | . . . . . . . . . . . . . . . . . . . . . . . . . . . . . 1 . 1 Average Slot Usage (%) 93 | . 100 100 98 100 100 100 99 99 100 99 99 100 99 98 100 80 80 79 80 80 81 82 98 86 82 89 99 94 99 94 93 Engine 2 | . 14 14 11 11 11 3 . 5 . 9 . . . . . . . 2 3 . . . . . . . . . . . . Core 3 | . . . . . . 7 9 3 8 . 6 7 7 7 7 13 13 10 4 . . . 1 . 4 4 . . . . . Reactor 4 | . . . . . . . . . . . . . . . . . . . 2 13 11 10 9 11 6 5 9 10 8 10 10 Leg 32 | . 28 28 32 33 33 33 36 36 36 35 38 38 37 38 38 32 33 33 32 33 29 29 29 29 29 31 31 30 31 26 25 Device 13 | . 14 14 11 11 11 11 17 14 9 9 12 7 7 7 7 12 13 13 12 14 21 16 17 17 19 21 14 10 17 10 12 Storage 7 | . 14 14 11 11 11 11 9 9 9 9 7 7 7 7 7 6 6 6 6 6 6 11 11 11 8 5 5 5 4 4 3 Processor 3 | . . . . . . . . . . . 2 7 7 7 7 . 5 6 . . . . . . . 4 10 10 9 11 10 Protection 4 | . . . . . . . . 3 9 9 7 7 7 7 7 6 . . 5 4 5 4 4 5 5 5 5 8 8 8 7 Energy Gun 6 | . 14 14 8 11 22 21 10 10 25 18 15 14 15 13 15 . . . . . . . 1 . . . . . . . . Ballistic Gun 10 | . 14 13 23 21 1 9 11 8 1 9 7 7 7 6 7 5 5 5 . 6 4 5 9 7 5 10 17 15 17 13 9 Peak Build Rating 210 | 7 8 14 14 14 16 25 36 41 41 41 48 47 47 51 50 86 88 89 111 110 127 128 131 133 136 140 137 146 158 190 210 Average Rating 82 | 6 7 8 12 13 14 20 31 37 39 39 47 46 45 45 48 79 86 86 66 108 121 123 122 131 131 135 131 131 151 176 194 On Entrance 73 | 6 7 8 9 13 14 16 25 36 36 39 41 47 47 45 49 48 83 87 89 107 110 122 126 127 133 130 127 133 137 153 190 Avg Prop Armor Cover (%) 3 | . 8 . . . . . . . . . 2 2 2 4 4 3 . . . . . . . . . . . . . . . Naked Turns . | . . . . . . . . . . . . . . . . . . . . . . . . . . . . . . . . Heaviest Build 220 | 12 17 17 32 31 31 35 42 54 46 46 50 43 43 43 43 75 74 74 98 101 108 122 127 115 109 114 117 122 124 189 220 Greatest Support 218 | 20 20 20 30 30 30 33 53 57 53 58 71 56 63 73 60 87 87 87 129 129 129 128 128 128 128 148 158 186 186 193 218 Greatest Overweight (x) 1 | . 1 . 1 1 1 1 . . . 1 . . . . . . . . 1 . . . . . . . . . . . 1 Average Overweight (x) . | . . . . . . . . . . . . . . . . . . . . . . . . . . . . . . . . Largest Inventory Capacity 25 | 8 10 10 15 15 15 15 15 15 15 15 15 15 15 15 15 20 20 20 20 20 20 20 20 20 20 20 20 20 20 25 25 Average Capacity 17 | 8 9 10 14 15 15 15 15 15 15 15 15 15 15 15 15 15 20 20 20 20 20 20 20 20 20 20 20 20 20 22 25 Most Carried 25 | 5 10 10 15 15 15 15 15 15 15 15 15 15 15 15 15 20 20 20 20 20 20 20 20 20 20 20 20 20 20 25 25 Average Carried 16 | 2 8 9 13 14 14 14 14 14 14 15 14 15 15 14 15 15 19 19 18 20 19 19 19 19 20 19 19 13 19 21 21 Final Capacity 25 | 8 10 10 15 15 15 15 15 15 15 15 15 15 15 15 15 20 20 20 20 20 20 20 20 20 20 20 20 20 20 25 25 Final Carried 25 | 4 10 10 15 15 15 15 15 15 15 15 15 15 15 15 15 20 20 20 20 20 20 20 20 20 20 20 20 20 20 25 16 Class Distribution -------------------- 24% | Scavenger-Tank 21% | Scavenger-Skirmisher 16% | Scavenger-Gunner 13% | Tank 7% | Commander-Tank 5% | Mutant 4% | Scavenger-Mutant Dominant Class ---------------- Mutant | -10/Materials Mutant | -10/Mines Scavenger-Gunner | -9/Materials Scavenger-Gunner | -9/Mines Scavenger-Mutant | -9/Exiles Scavenger-Skirmisher | -8/Mines Scavenger-Skirmisher | -8/Materials Scavenger-Skirmisher | -8/Garrison Scavenger-Skirmisher | -8/Materials Scavenger-Skirmisher | -8/Storage Tank | -7/Factory Tank | -7/Lower Caves Tank | -7/Lower Caves Tank | -7/Zion Tank | -6/Proximity Caves Scavenger-Tank | -6/Factory Scavenger-Skirmisher | -6/Lower Caves Scavenger-Skirmisher | -6/Lower Caves Scavenger-Mutant | -6/Data Miner Scavenger-Tank | -5/Proximity Caves Scavenger-Tank | -5/Factory Scavenger-Tank | -5/Extension Commander-Tank | -5/Cetus Commander-Tank | -5/Archives Scavenger-Tank | -5/Hub_04(d) Scavenger-Tank | -4/Factory Scavenger-Gunner | -4/Armory Scavenger-Gunner | -4/Lab Scavenger-Tank | -3/Research Hacker-Skirmisher | -2/Research Hacker-Skirmisher | -1/Access Resources | -11 -10 -10 -9 -9 -9 -8 -8 -8 -8 -8 -7 -7 -7 -7 -6 -6 -6 -6 -6 -5 -5 -5 -5 -5 -5 -4 -4 -4 -3 -2 -1 ----------- Run | Yrd Mat Min Mat Min Exi Min Mat Gar Mat Sto Fac Low Low Zio Pro Fac Low Low Dat Pro Fac Ext Cet Arc Hub Fac Arm Lab Res Res Acc Matter Collected 15577 | 249 162 69 542 359 10 312 318 479 68 217 54 240 57 80 103 1840 410 256 236 241 323 1514 220 46 170 1466 1176 . 1839 767 1754 Remotely 2545 | . . . . . . . . . . . . . . . . . . . . . . 321 . . . 548 510 . 151 522 493 Salvage Created 25109 | 183 436 57 948 390 . 534 829 1115 462 1215 98 633 197 . 115 3073 214 226 410 184 364 2385 188 242 174 1640 1456 . 1772 763 4806 Parts 1176 | 17 30 4 58 21 . 34 31 30 15 54 4 16 7 . 5 125 8 10 25 12 22 110 11 15 11 92 64 . 72 44 229 Haulers Intercepted 19 | . 2 . 4 . . . 1 . 4 2 . . . . . 2 . . . . . . . . . 1 . . 3 . . Recyclers Shooed 30 | . 3 . 1 . . 2 2 . 1 1 4 . . . . 3 . . . . 2 2 . . . 1 . . 2 . 6 Parts Field Recycled . | . . . . . . . . . . . . . . . . . . . . . . . . . . . . . . . . Retrieved Matter . | . . . . . . . . . . . . . . . . . . . . . . . . . . . . . . . . Parts Self-Destructed 45 | . . . . . . . . . . . . 13 5 . 2 . 5 8 . 12 . . . . . . . . . . . Prevented . | . . . . . . . . . . . . . . . . . . . . . . . . . . . . . . . . Parts Restored . | . . . . . . . . . . . . . . . . . . . . . . . . . . . . . . . . Kills | -11 -10 -10 -9 -9 -9 -8 -8 -8 -8 -8 -7 -7 -7 -7 -6 -6 -6 -6 -6 -5 -5 -5 -5 -5 -5 -4 -4 -4 -3 -2 -1 ------- Run | Yrd Mat Min Mat Min Exi Min Mat Gar Mat Sto Fac Low Low Zio Pro Fac Low Low Dat Pro Fac Ext Cet Arc Hub Fac Arm Lab Res Res Acc Combat Hostiles Destroyed 386 | . 9 3 17 21 . 17 10 24 5 16 1 14 4 . 3 31 2 7 4 3 7 33 2 . 3 14 33 . 18 23 62 Melee 4 | . . . . . . . . . . . . . . . . . . . 4 . . . . . . . . . . . . Guns 260 | . 9 3 17 17 . 14 9 6 4 16 . 11 4 . 1 25 2 4 . 3 7 27 2 . 3 14 23 . 18 5 16 Cannons 26 | . . . . . . . 1 8 . . . . . . . . . . . . . 2 . . . . 1 . . 2 12 AOE 79 | . . . . 4 . 3 . 9 . . 1 3 . . 2 6 . 3 . . . 4 . . . . 9 . . 16 19 Classes Destroyed 25 | 2 5 . 4 2 . 1 1 1 . . . 1 . . . . 1 1 . . . 2 . . . . 1 . 2 . 1 Worker 23 | . . . 1 1 . . 1 . . 1 . . . . . 2 . . . . 3 . . . . 5 . . 4 1 4 Builder 23 | . 1 . . 1 . . 1 . . 1 . . . . . 2 . . . . . 5 . . . 5 . . 1 . 6 Tunneler 10 | 5 . 1 . 1 . . . . . . . . . . . 1 . . . . . 1 . . . . . . . 1 . Hauler 19 | . 2 . 4 . . . 1 . 4 2 . . . . . 2 . . . . . . . . . 1 . . 3 . . Recycler 26 | 1 1 . 1 . . . 3 . . 3 1 . . . . 9 . . . . 1 2 . . . 2 . . . . 2 Mechanic 2 | . . . 1 . . . . . . . . . . . . . . . . . . . . . . . . . . . 1 Operator 12 | . . . 1 . . . . . . 1 . . . . . . . . . . . . . 7 . 1 . . 2 . . Watcher 11 | . 1 . 1 . . . . . . . . . . . . 4 . . . . . 1 . . . . 1 . . . 3 Swarmer 67 | . 6 3 4 3 . 8 . . . . . 1 . . . 4 . . . . 5 1 . . . . 7 . 1 14 10 Grunt 136 | . 3 . 9 2 . 8 4 15 3 6 . 10 3 . . 15 . 3 . . . 16 . . 1 6 10 . 3 4 15 Brawler 5 | . . . . 1 . . . 3 . . . . . . . . . . . . . . . . . . 1 . . . . Duelist 10 | . . . . . . 1 . . . . . . 1 . . . . 1 . . . 1 . . . . 5 . . . 1 Protector 3 | . . . . . . . . . . . . . . . . . . . . . . 1 . . . . 2 . . . . Sentry 51 | . . . 4 . . . 4 5 1 9 . 1 . . . 2 . . . 1 . 9 . . 1 5 3 . 3 1 2 Demolisher 3 | . . . . . . . . . . . . . . . . . . . . . . . . . . . 1 . 2 . . Specialist 3 | . . . . . . . . 1 . . . . . . . . . . . . . . . . . . . . . . 2 Hunter 35 | . . . . . . . 2 . 1 1 1 1 . . 2 5 1 . . 2 . 2 . . . . . . 2 . 15 Programmer 37 | . . . . . . . . . . . . 1 . . 1 5 . 1 . . 2 . . . 1 3 4 . 1 4 14 Heavy 1 | . . . . . . . . . . . . . . . . . . . . . . . . . . . . . . . 1 Behemoth 4 | . . . . . . . . . . . . . . . . . . . . . . 2 . . . . . . . . 2 Cetus Guard 2 | . . . . . . . . . . . . . . . . . . . . . . . 2 . . . . . . . . Enhanced Grunt 4 | . . . . . . . . . . . . . . . . . . . 4 . . . . . . . . . . . . Striker 5 | . . . . . . . . . . . . . . . . . . . . . . . . . . . . . 5 . . Decomposer 3 | . . . . . . . . . . . . . . . . . 2 1 . . . . . . . . . . . . . Thief 2 | . . . . . . . . . . . . . . . . . . 2 . . . . . . . . . . . . . Assembled 15 | . . . . 15 . . . . . . . . . . . . . . . . . . . . . . . . . . . Thug 1 | . . . . . . . . . . . . . . . . . . . . . . 1 . . . . . . . . . Butcher 2 | . . . . . . . . 1 . . . . . . . . . . . . . 1 . . . . . . . . . Mutant 1 | . . . . . . . . . . . . . . . . . 1 . . . . . . . . . . . . . . Revision 1 | . . . . . . . . . . . . . . . . . . . . . . . . . . . . . 1 . . Best Kill Streak 25 | 4 4 3 6 9 . 7 10 10 4 9 1 4 4 . 2 8 1 4 1 2 5 8 2 1 1 8 5 . 3 7 25 Combat Bots Only 22 | . 3 3 5 8 . 7 2 10 4 4 1 4 4 . 2 7 1 4 1 2 5 6 2 . 1 4 5 . 2 7 22 Max Kills in Single Turn 5 | 1 1 1 1 2 . 3 2 3 1 2 1 2 1 . 2 4 1 2 1 1 1 3 1 1 1 3 2 . 1 4 5 Gunslinging 1 | . . . . 1 . . . . . . . . . . . . . . . . . . . . . 1 . . . . . Exploded 4 | . . . . 2 . 3 . 3 . . 1 2 . . 2 4 . 2 . . . 3 . . . . 2 . . 4 3 Melee 1 | . . . . . . . . . . . . . . . . . . . 1 . . . . . . . . . . . . Uniques/NPCs Destroyed 2 | . . . . . . . . . . . . . . . . . . . 1 . . . 1 . . . . . . . . Data Miner (-6/Data Miner) A7 (-5/Cetus) Combat | -11 -10 -10 -9 -9 -9 -8 -8 -8 -8 -8 -7 -7 -7 -7 -6 -6 -6 -6 -6 -5 -5 -5 -5 -5 -5 -4 -4 -4 -3 -2 -1 -------- Run | Yrd Mat Min Mat Min Exi Min Mat Gar Mat Sto Fac Low Low Zio Pro Fac Low Low Dat Pro Fac Ext Cet Arc Hub Fac Arm Lab Res Res Acc Hostile Shots Fired 1418 | . 40 17 56 57 . 64 54 67 15 34 6 16 19 . 20 64 6 13 40 11 10 29 6 . 2 70 101 . 48 80 473 Missed 536 | . 9 8 16 22 . 22 23 26 6 8 2 7 4 . 3 35 3 3 9 5 3 16 3 . 1 27 42 . 21 24 188 Intercepted 6 | . . . . . . . . . . . . . . . . . . . . . . . . . . . . . 6 . . Deflected 2 | . . . . . . . . . . . . . . . . . . . . . . . . . . . . . . 1 1 Hits 882 | . 31 9 40 35 . 42 31 41 9 26 4 9 15 . 17 29 3 10 31 6 7 13 3 . 1 43 59 . 27 56 285 Melee 21 | . . . . 8 . . . . . . . . 2 . . . . 1 . . . 2 . . . . 3 . 2 . 3 Projectile 861 | . 31 9 40 27 . 42 31 41 9 26 4 9 13 . 17 29 3 9 31 6 7 11 3 . 1 43 56 . 25 56 282 AOE 6 | . . . . . . . . . . . . . . . . . . . . . . . . . 1 . 4 . 1 . . Critical Strikes 42 | . . . . . . 3 2 2 1 . . . . . 3 . . . . . 1 1 2 . 1 3 2 . 1 3 17 Actively Blocked 2 | . . . . . . . . . . . . . . . . . . . . . . . . . . . . . 1 . 1 Part Disruptions 4 | . 1 . . . . . . . . . . . . . . . . . 1 . . . . . . . . . . . 2 Damage Taken 15165 | . 328 70 486 535 . 610 343 640 142 411 66 138 284 . 251 418 44 140 1313 116 150 250 77 20 135 510 1187 . 358 1126 5017 Core 1373 | . 81 6 83 91 . 69 54 91 13 61 . 12 32 . 33 16 . 16 268 . 17 31 . . . 30 122 . 53 56 138 Absorbed by Shields 2093 | . . . . . . . 130 125 . . . . . . . 158 10 30 131 . 54 92 29 7 45 186 163 . 128 193 612 Ignored by Resistances 638 | . . . . . . . . . . . . 8 . . 22 . . . . . . . . . . 164 . . . . 444 Regen/Repaired (Parts) 65 | . . . . . . . . . . 65 . . . . . . . . . . . . . . . . . . . . . Core Remaining (%) 80 | 100 . 65 . . . 39 . . . 60 . . . . 89 . . . . 64 . . . . 95 . . 86 95 96 91 Volleys Fired 1236 | 13 42 13 62 39 . 43 44 56 27 45 5 21 10 1 7 109 22 13 2 11 16 95 10 . 8 60 99 44 83 69 167 Largest 4 | 2 2 2 3 3 . 3 3 3 3 3 3 3 3 1 3 1 1 1 1 1 1 2 3 . 1 4 4 1 4 4 4 Hottest 260 | 60 60 100 99 119 . 119 154 159 178 147 147 147 147 69 147 60 60 60 69 60 60 115 105 . 60 140 180 90 165 210 260 Shots Fired 2492 | 26 83 22 172 111 . 121 132 136 80 129 11 59 28 1 19 109 22 13 2 11 16 105 20 . 8 120 239 44 262 116 275 Gun 2084 | 26 83 19 172 108 . 118 121 77 80 129 11 53 28 . 18 107 22 10 . 11 16 92 15 . 8 118 194 . 255 54 139 Cannon 302 | . . . . . . . 11 46 . . . . . 1 . . . . 2 . . 10 5 . . 2 25 44 7 52 97 Launcher 92 | . . . . 3 . 3 . 13 . . . 6 . . . . . . . . . . . . . . 20 . . 10 37 Special 14 | . . 3 . . . . . . . . . . . . 1 2 . 3 . . . 3 . . . . . . . . 2 Kinetic 1553 | 13 42 10 134 67 . 40 76 37 2 45 2 19 9 . 6 107 22 10 . 11 16 92 20 . 8 118 194 . 260 54 139 Thermal 828 | 13 41 12 38 41 . 78 56 86 78 84 9 34 19 . 12 . . . . . . 10 . . . 2 25 44 2 52 92 Explosive 70 | . . . . 3 . 3 . 13 . . . 6 . . 1 2 . 3 . . . 3 . . . . 20 . . 10 6 Electromagnetic 39 | . . . . . . . . . . . . . . 1 . . . . 2 . . . . . . . . . . . 36 Robot Hit Streak 24 | 5 9 7 17 8 . 9 13 8 13 19 4 24 12 . 4 15 7 10 2 10 10 11 7 . 4 17 14 . 10 8 21 Robot Miss Streak 8 | 4 4 2 3 4 . 4 5 4 4 3 . 1 2 . 3 8 3 3 . 2 5 7 2 . 3 6 5 . 6 4 5 Penetration Max 1 | . . . . . . . . . . . . . . . . . . . . . . . 1 . . 1 1 . 1 . 1 Secondary Targets 36 | . 2 1 4 4 . 2 . . . 1 . 2 1 . . . . . . . . . . . . 3 7 . 1 1 7 Max Gunslinging Chain 2 | . 1 1 1 1 . 1 . . . 1 . 1 1 . . . . . . . . . . . . 2 1 . 1 1 1 Shots Hit Robots 1476 | 15 51 13 105 58 3 66 87 72 57 80 2 47 20 . 13 93 10 12 27 11 16 72 25 17 8 75 128 . 124 42 127 Core Hits 1052 | 6 25 5 49 43 . 34 32 55 16 44 3 29 8 . 5 102 8 12 17 9 14 94 14 7 7 59 100 . 68 40 147 Critical Kills 19 | . . . . . . . . . . . . . . . . . . . . . . . 2 . . 3 5 . 6 1 2 Critical Parts Destroyed 21 | . . . . . . . 2 . . . . . . . . . . . . . . . 1 . . 5 5 . 5 2 1 Critical Strikes 74 | . . . . . . 1 3 3 7 7 . 3 1 . 1 1 . . 3 . . 1 3 2 . 8 10 . 12 3 5 Burn 23 | . . . . . . 1 1 3 7 7 . 3 1 . . . . . . . . . . . . . . . . . . Meltdown 2 | . . . . . . . . . . . . . . . . . . . . . . . . . . . . . . . 2 Destroy 41 | . . . . . . . 2 . . . . . . . . . . . . . . . 3 . . 8 10 . 12 3 3 Sever 3 | . . . . . . . . . . . . . . . 1 1 . . . . . 1 . . . . . . . . . Impale 5 | . . . . . . . . . . . . . . . . . . . 3 . . . . 2 . . . . . . . Melee Attacks 106 | . . . . . 3 1 . . . . . . . . . 3 . . 66 . 2 . 14 17 . . . . . . . Impact . | . . . . . . . . . . . . . . . . . . . . . . . . . . . . . . . . Slashing . | . . . . . . . . . . . . . . . . . . . . . . . . . . . . . . . . Piercing 100 | . . . . . . . . . . . . . . . . 3 . . 66 . 2 . 14 15 . . . . . . . Sneak Attacks 32 | . . . . . 3 1 . . . . . . . . . . . . 1 . . . 14 13 . . . . . . . Combat Hostiles . | . . . . . . . . . . . . . . . . . . . . . . . . . . . . . . . . Follow-up Attacks . | . . . . . . . . . . . . . . . . . . . . . . . . . . . . . . . . Damage Inflicted 60435 | 189 615 165 1208 1089 . 1266 1449 2660 1043 1655 168 1070 353 . 490 6154 624 1244 873 433 1104 5796 1024 833 423 3793 5968 . 3463 3765 11518 Guns 36528 | 189 601 158 1177 739 . 952 1284 823 1043 1582 35 730 353 . 250 5144 495 565 . 433 878 4200 321 . 413 3640 3219 . 3300 909 3095 Cannons 5039 | . . . . . . . 156 586 . . . . . . . . . . 34 . . 300 49 . . . 139 . 36 368 3371 Explosions 15020 | . . . . 305 . 261 . 1251 . . 108 340 . . 201 792 . 577 . . . 1077 . . . . 2610 . . 2488 5010 Melee 2320 | . . . . . . . . . . . . . . . . . . . 839 . . . 654 827 . . . . . . . Ramming 1231 | . 14 7 31 45 . 53 9 . . 73 25 . . . . 145 129 30 . . 226 106 . 6 10 153 . . 127 . 42 Kinetic 30764 | 110 347 101 967 507 . 327 710 302 19 335 . 226 93 . 59 5144 495 565 . 433 878 4200 370 . 413 3640 3219 . 3300 909 3095 Thermal 10941 | 79 254 57 210 232 . 625 730 1107 1024 1247 143 504 260 . 191 196 . . . . . 300 . . . . 139 . 36 368 3239 Explosive 11996 | . . . . 305 . 261 . 1251 . . . 340 . . 201 443 . 577 . . . 1077 . . . . 2610 . . 2488 2443 Electromagnetic 2886 | . . . . . . . . . . . . . . . . 153 . . 34 . . . . . . . . . . . 2699 Impact . | . . . . . . . . . . . . . . . . . . . . . . . . . . . . . . . . Slashing 297 | . . . . . . . . . . . . . . . 39 73 . 72 . . . 113 . . . . . . . . . Piercing 2320 | . . . . . . . . . . . . . . . . . . . 839 . . . 654 827 . . . . . . . Highest Corruption 13 | . 1 1 . . . . . . . . 1 1 1 1 1 1 1 1 3 3 3 . . . 3 2 2 1 . 7 13 Average Corruption 2 | . 1 1 . . . . . . . . 1 1 1 1 1 1 1 1 1 3 2 . . . 2 1 1 1 . 6 10 Corruption Purged 6 | . . . . . . . . . . . . . . . . . . . . . 3 . . . . . 2 1 . . . Corruption Blocked . | . . . . . . . . . . . . . . . . . . . . . . . . . . . . . . . . Effects 123 | . 2 4 . . . . . . . . 1 4 5 . 8 12 5 4 7 4 2 . . . 1 3 12 . . 13 36 Message Errors 37 | . . 2 . . . . . . . . . . 2 . 1 5 3 2 3 . 2 . . . . 1 5 . . 3 8 Matter Fused 34 | . . 1 . . . . . . . . 1 1 1 . 4 4 . 2 1 1 . . . . . 1 3 . . 5 9 Heat Flow Errors 13 | . . . . . . . . . . . . 2 . . 1 . 1 . . 2 . . . . 1 . 1 . . 3 2 Energy Discharges 9 | . . . . . . . . . . . . . . . . . 1 . . . . . . . . 1 . . . . 7 Parts Fused 1 | . . . . . . . . . . . . . . . 1 . . . . . . . . . . . . . . . . Data Loss (minor) 13 | . . 1 . . . . . . . . . . 2 . . 1 . . 1 1 . . . . . . 2 . . 1 4 Data Loss (major) 3 | . 1 . . . . . . . . . . . . . . . . . 1 . . . . . . . . . . . 1 Misfires 5 | . . . . . . . . . . . . 1 . . . 1 . . . . . . . . . . 1 . . . 2 Alerts 3 | . . . . . . . . . . . . . . . 1 . . . 1 . . . . . . . . . . 1 . Weapon Failures 5 | . 1 . . . . . . . . . . . . . . 1 . . . . . . . . . . . . . . 3 Overload Shots . | . . . . . . . . . . . . . . . . . . . . . . . . . . . . . . . . Overflow Damage 900 | . . . . 4 . . 10 3 . . . . . . 18 10 3 27 12 . 30 62 18 171 . . 51 . 8 160 313 Projectiles 138 | . . . . . . . 10 . . . . . . . . . . . . . . 23 . . . . . . . 37 68 Explosions 455 | . . . . 4 . . . 3 . . . . . . 18 9 . . . . . 2 . . . . 51 . . 123 245 Melee 307 | . . . . . . . . . . . . . . . . 1 3 27 12 . 30 37 18 171 . . . . 8 . . Knockbacks 9 | . . . . . . 1 . . . 1 . . . . . 1 . . . . 2 2 . . . . . . 1 . 1 Impact 9 | . . . . . . 1 . . . 1 . . . . . 1 . . . . 2 2 . . . . . . 1 . 1 Kinetic . | . . . . . . . . . . . . . . . . . . . . . . . . . . . . . . . . Secondary . | . . . . . . . . . . . . . . . . . . . . . . . . . . . . . . . . Self-Inflicted Damage 397 | . . . . . . . . 161 . . . . . . . . . . . . . . . . . . . . . 62 174 Shots 11 | . . . . . . . . 4 . . . . . . . . . . . . . . . . . . . . . 1 6 Rammed . | . . . . . . . . . . . . . . . . . . . . . . . . . . . . . . . . Targets Rammed 102 | . 5 3 6 6 . 7 1 . . 10 5 . . . . 11 16 1 . . 8 6 . 1 1 9 . . 4 . 2 Kicked 102 | . 5 3 6 6 . 7 1 . . 10 5 . . . . 11 16 1 . . 8 6 . 1 1 9 . . 4 . 2 Crushed . | . . . . . . . . . . . . . . . . . . . . . . . . . . . . . . . . Highest Temperature 313 | 20 72 40 72 54 . 244 48 180 250 123 48 113 149 . 264 313 138 84 . 210 96 104 . . 229 86 234 . 20 219 204 Average Temperature 56 | 20 27 18 20 19 . 79 18 55 103 41 36 41 62 . 87 77 42 36 . 85 44 28 . . 62 24 50 . 15 101 59 Received Heat Transfer 2154 | . 102 . 162 32 . 333 141 262 72 135 . 54 117 . . 32 . 57 . . . 50 . . . 119 195 . 15 42 234 Siege Activations . | . . . . . . . . . . . . . . . . . . . . . . . . . . . . . . . . Martial Activations . | . . . . . . . . . . . . . . . . . . . . . . . . . . . . . . . . Shielding Activations 2 | . . . . . . . . . . . . . . . . . . . . . . . . . . . . . . 1 1 Total Turns 11 | . . . . . . . . . . . . . . . . . . . . . . . . . . . . . . 5 6 Longest Duration 6 | . . . . . . . . . . . . . . . . . . . . . . . . . . . . . . 5 6 Robots Disrupted 2 | . . . . . . . . . . . . . . . . . . . . . . . . . . . . . . . 2 Combat Hostiles 2 | . . . . . . . . . . . . . . . . . . . . . . . . . . . . . . . 2 Robots Corrupted 18 | . . . . . . . . . . . . . . . . 2 2 . . . . . . 1 . . . . . . 13 Combat Hostiles 14 | . . . . . . . . . . . . . . . . . 1 . . . . . . . . . . . . . 13 Parts Fried 32 | . . . . . . . . . . . . . . . . 9 . 1 . . . . . 3 . . . . . . 19 Impact Corruptions 11 | . . . . . . . . . . . . . . . . 2 2 2 . . 2 1 . 1 . . . . 1 . . Robots Melted 4 | . . . . . . . . 1 1 . . . . . . . . . . . . . . . . . . . . . 2 Combat Hostiles 4 | . . . . . . . . 1 1 . . . . . . . . . . . . . . . . . . . . . 2 Parts Melted 47 | . 1 1 3 1 . 3 3 4 5 8 . 5 1 . 3 . . . . . . 2 . . . . . . 1 . 6 Heat Transferred 18252 | 175 600 125 487 536 . 1525 1628 2109 2664 3108 124 1295 629 . 333 200 . . . . . . . . . . . . . 259 2455 Parts Sabotaged . | . . . . . . . . . . . . . . . . . . . . . . . . . . . . . . . . Parts Stolen 1 | . . . . . . . . . . . . . . . . . . 1 . . . . . . . . . . . . . Parts Stripped . | . . . . . . . . . . . . . . . . . . . . . . . . . . . . . . . . Power Chain Reactions . | . . . . . . . . . . . . . . . . . . . . . . . . . . . . . . . . Alert | -11 -10 -10 -9 -9 -9 -8 -8 -8 -8 -8 -7 -7 -7 -7 -6 -6 -6 -6 -6 -5 -5 -5 -5 -5 -5 -4 -4 -4 -3 -2 -1 ------- Run | Yrd Mat Min Mat Min Exi Min Mat Gar Mat Sto Fac Low Low Zio Pro Fac Low Low Dat Pro Fac Ext Cet Arc Hub Fac Arm Lab Res Res Acc Maximum Alert Level 5 | . . . 1 . . . . 3 2 1 . . . . . 3 . . . . . 3 3 2 1 1 3 . . 2 5 Low Security (%) 63 | 100 100 100 33 100 . 100 100 25 . 64 100 . . . . 24 . . . . 100 47 . 57 58 67 6 . 100 54 39 Level 1 19 | . . . 66 . . . . 1 3 35 . . . . . 68 . . . . . 6 . 42 41 32 26 . . 39 7 Level 2 7 | . . . . . . . . 26 96 . . . . . . . . . . . . 10 56 . . . 49 . . 6 4 Level 3 8 | . . . . . . . . 46 . . . . . . . 7 . . . . . 36 43 . . . 17 . . . 37 Level 4 . | . . . . . . . . . . . . . . . . . . . . . . . . . . . . . . . 2 Level 5 . | . . . . . . . . . . . . . . . . . . . . . . . . . . . . . . . 8 High Security . | . . . . . . . . . . . . . . . . . . . . . . . . . . . . . . . . Max Security . | . . . . . . . . . . . . . . . . . . . . . . . . . . . . . . . . Peak Influence 1869 | 10 70 70 303 85 . 199 199 958 487 347 111 . . . . 720 . . . . 124 943 761 405 357 394 722 . 121 417 1869 Initial 503 | . . 16 8 85 . . 26 6 466 183 36 . . . . 4 . . . . . 32 503 280 . 151 184 . . 26 196 Average 214 | 3 33 12 191 13 . 103 50 587 444 139 27 . . . . 277 . . . . 41 400 656 168 179 188 500 . 39 196 610 Influence Increases 15030 | 30 316 137 741 172 . 439 379 992 175 548 116 320 90 . 80 1226 35 165 20 70 199 1659 358 245 805 581 1183 . 577 1067 2305 Destroy 0b10 Robot/C 8100 | . 180 60 400 120 . 340 200 540 100 320 20 280 80 . 60 620 20 100 20 60 140 900 160 80 220 280 620 . 340 460 1380 Destroy 0b10 Robot/NC 720 | 30 25 5 55 15 . . 30 . 20 40 5 . . . . 100 5 . . . 20 55 10 35 15 70 15 . 50 10 110 Destroy Leader 1524 | . 46 10 124 20 . 50 62 20 38 114 10 40 10 . 20 162 10 20 . 10 20 74 . . 66 82 104 . 96 70 246 Allied During Kill 1266 | . . . 36 . . . . 40 . . . . . . . . . . . . . 342 170 115 281 . 1 . . . 281 Successful Hack 282 | . 5 . 5 . . 9 4 34 17 11 . . . . . 6 . . . . . . . . . . 12 . 18 125 36 Select Force Hacks 170 | . 30 . 60 . . . . . . 30 . . . . . . . . . . . . . . 50 . . . . . . Disable Machine 630 | . . . 30 . . . 15 45 . 15 60 . . . . 60 . . . . 15 . . 15 45 45 150 . 30 30 75 Anti-Garrison Action 350 | . . . . . . . . 200 . . . . . . . 150 . . . . . . . . . . . . . . . Destroy Structure 1253 | . . 2 1 17 . 25 8 68 . 3 21 . . . . 53 . . . . 4 108 18 . 68 104 266 . 28 342 117 Partial Spotted 15 | . . . . . . . . . . . . . . . . . . . . . . . . . 15 . . . . . . Lose Combat Pursuer 720 | . 30 60 30 . . 15 60 45 . 15 . . . . . 75 . 45 . . . 180 . . 45 . 15 . 15 30 60 Influence Decreases 13173 | 30 273 158 544 330 61 370 438 44 698 902 174 325 108 . 72 520 699 215 20 70 133 826 556 946 494 514 856 705 530 785 777 Entered New Map 3428 | . . 27 14 134 61 . 43 4 492 252 45 9 4 . . 4 265 10 . . . 34 396 421 . 160 194 705 . 21 133 Time Decay 7905 | 30 273 131 450 176 . 360 235 . 206 350 129 316 94 . 72 496 434 205 20 70 133 542 160 505 294 334 452 . 520 454 464 Lost Part 300 | . . . 20 20 . 10 10 20 . . . . 10 . . 20 . . . . . 10 . . . . 20 . 10 10 140 Lost Ally 640 | . . . 60 . . . . 20 . . . . . . . . . . . . . 240 . 20 200 20 40 . . . 40 Purge Threat 900 | . . . . . . . 150 . . 300 . . . . . . . . . . . . . . . . 150 . . 300 . Squads Dispatched 69 | . 2 1 3 . . 1 . . 1 5 1 . . . . 14 . . . . 1 3 . . 6 2 7 . 4 5 13 Investigation 11 | . 1 . 2 . . . . . . 2 . . . . . 1 . . . . 1 1 . . 1 . . . 1 . 1 Extermination 17 | . . . . . . . . . . . 1 . . . . 4 . . . . . . . . 2 1 3 . . 3 3 Reinforcement 27 | . 1 . 1 . . 1 . . . . . . . . . 6 . . . . . 1 . . 3 1 2 . 3 2 6 Assault 9 | . . 1 . . . . . . 1 . . . . . . 2 . . . . . 1 . . . . 2 . . . 2 Garrison 5 | . . . . . . . . . . 3 . . . . . 1 . . . . . . . . . . . . . . 1 Intercept . | . . . . . . . . . . . . . . . . . . . . . . . . . . . . . . . . Searches Triggered . | . . . . . . . . . . . . . . . . . . . . . . . . . . . . . . . . Construction Impeded 8 | . . . . . . 1 . . . . . . . . . 2 . . . . . 1 . . 1 . . . . . 3 Haulers Reinforced 5 | . . . . . . . . . . . . . . . . 3 . . . . . . . . 1 . . . 1 . . Active Scanning Responses . | . . . . . . . . . . . . . . . . . . . . . . . . . . . . . . . . Cargo Convoy Interrupts . | . . . . . . . . . . . . . . . . . . . . . . . . . . . . . . . . Stealth | -11 -10 -10 -9 -9 -9 -8 -8 -8 -8 -8 -7 -7 -7 -7 -6 -6 -6 -6 -6 -5 -5 -5 -5 -5 -5 -4 -4 -4 -3 -2 -1 --------- Run | Yrd Mat Min Mat Min Exi Min Mat Gar Mat Sto Fac Low Low Zio Pro Fac Low Low Dat Pro Fac Ext Cet Arc Hub Fac Arm Lab Res Res Acc Distress Signals 45 | . 3 . 7 1 . . 2 . 1 3 1 . . . . 7 . . . . . 1 2 1 4 1 2 . 3 2 4 Communications Jammed 45 | . . . . . . . . . . . . . . . . . . . . . . . . . . 2 43 . . . . Distress Signals 45 | . . . . . . . . . . . . . . . . . . . . . . . . . . 2 43 . . . . Times Spotted 517 | . 20 7 31 21 . 17 17 26 9 23 6 13 4 . 3 30 2 9 4 2 7 42 8 11 18 17 38 . 29 19 84 Peak Tracking Total 8 | . 4 4 4 5 . 4 7 6 2 4 4 3 4 . 2 4 1 4 1 2 5 7 5 1 8 5 6 . 4 6 8 Tactical Retreats 32 | . 1 1 2 1 . 1 3 1 . 1 . . . . . 4 . 1 . . . 7 . . 1 . 1 . 1 2 4 Traps | -11 -10 -10 -9 -9 -9 -8 -8 -8 -8 -8 -7 -7 -7 -7 -6 -6 -6 -6 -6 -5 -5 -5 -5 -5 -5 -4 -4 -4 -3 -2 -1 ------- Run | Yrd Mat Min Mat Min Exi Min Mat Gar Mat Sto Fac Low Low Zio Pro Fac Low Low Dat Pro Fac Ext Cet Arc Hub Fac Arm Lab Res Res Acc Traps Triggered 19 | . 2 . . . . . . 5 . 1 1 . . . . 2 . . . . 2 1 . . . . . . . . 5 Indirectly 5 | . . . . . . . . . . . . . . . . . . . . . . . . . . . . . . . 5 Trap Hack Attempts . | . . . . . . . . . . . . . . . . . . . . . . . . . . . . . . . . Triggered . | . . . . . . . . . . . . . . . . . . . . . . . . . . . . . . . . Disarmed . | . . . . . . . . . . . . . . . . . . . . . . . . . . . . . . . . Reprogrammed . | . . . . . . . . . . . . . . . . . . . . . . . . . . . . . . . . Reused . | . . . . . . . . . . . . . . . . . . . . . . . . . . . . . . . . Traps Extracted . | . . . . . . . . . . . . . . . . . . . . . . . . . . . . . . . . Installed . | . . . . . . . . . . . . . . . . . . . . . . . . . . . . . . . . Triggered . | . . . . . . . . . . . . . . . . . . . . . . . . . . . . . . . . Machines | -11 -10 -10 -9 -9 -9 -8 -8 -8 -8 -8 -7 -7 -7 -7 -6 -6 -6 -6 -6 -5 -5 -5 -5 -5 -5 -4 -4 -4 -3 -2 -1 ---------- Run | Yrd Mat Min Mat Min Exi Min Mat Gar Mat Sto Fac Low Low Zio Pro Fac Low Low Dat Pro Fac Ext Cet Arc Hub Fac Arm Lab Res Res Acc Machines Disabled 61 | . . . 2 . . . 1 8 . 1 4 . . . . 5 . . 1 . 1 . . 1 3 7 10 8 2 2 5 Max in Single Turn 4 | . . . 1 . . . 1 2 . 1 4 . . . . 4 . . 1 . 1 . . . 1 2 2 1 1 1 2 Garrison Access 4 | . . . . . . . . . . . . . . . . 1 . . . . . . . . . 1 . . . 2 . Garrison Relay 3 | . . . . . . . . 3 . . . . . . . . . . . . . . . . . . . . . . . Phase Generator 1 | . . . . . . . . 1 . . . . . . . . . . . . . . . . . . . . . . . Network Hub 2 | . . . . . . . . . . . . . . . . . . . . . . . . . 2 . . . . . . Machines Repaired . | . . . . . . . . . . . . . . . . . . . . . . . . . . . . . . . . Machines Dismantled . | . . . . . . . . . . . . . . . . . . . . . . . . . . . . . . . . Machines Sabotaged 1 | . . . . . . . . . . . . . . . . . . . . . . . . . 1 . . . . . . Overloaded Fab Kills . | . . . . . . . . . . . . . . . . . . . . . . . . . . . . . . . . Hacking | -11 -10 -10 -9 -9 -9 -8 -8 -8 -8 -8 -7 -7 -7 -7 -6 -6 -6 -6 -6 -5 -5 -5 -5 -5 -5 -4 -4 -4 -3 -2 -1 --------- Run | Yrd Mat Min Mat Min Exi Min Mat Gar Mat Sto Fac Low Low Zio Pro Fac Low Low Dat Pro Fac Ext Cet Arc Hub Fac Arm Lab Res Res Acc Machines Accessed 62 | . 2 1 4 1 2 2 5 3 4 9 1 . . . . 4 . . 3 . 1 . . . 1 1 3 . 2 10 3 Terminals 33 | . 1 . 1 . . 2 4 3 2 6 1 . . . . . . . . . . . . . 1 . 3 . . 6 3 Fabricators 3 | . . . . . . . . . . . . . . . . 1 . . . . 1 . . . . . . . . 1 . Repair Stations 2 | . . . 1 . . . . . . 1 . . . . . . . . . . . . . . . . . . . . . Recycling Units 7 | . 1 . 2 . . . . . . 1 . . . . . 2 . . . . . . . . . . . . 1 . . Scanalyzers 5 | . . . . . . . . . 2 . . . . . . 1 . . . . . . . . . . . . 1 1 . Garrison Access 5 | . . . . . . . 1 . . 1 . . . . . . . . . . . . . . . 1 . . . 2 . Total Hacks 201 | . 6 1 6 1 2 6 13 7 9 22 2 . . . . 12 . . 22 . 3 . . . 2 2 14 . 4 59 8 Successful 107 | . 2 1 4 1 2 3 5 3 6 12 . . . . . 8 . . 22 . 1 . . . 1 1 4 . 1 28 2 Failed 91 | . 4 . 2 . . 2 8 4 3 10 2 . . . . 3 . . . . 2 . . . 1 1 10 . 3 30 6 Catastrophic 14 | . . . . . . . 2 3 . . 1 . . . . 1 . . . . . . . . . . 2 . 2 3 . Database Lockouts 3 | . . . . . . 1 . . . . . . . . . 1 . . . . . . . . . . . . . 1 . Manual 51 | . 1 . 2 . 1 4 9 2 1 10 . . . . . 2 . . . . 2 . 1 . 2 . 10 . . 4 . Terminals 122 | . 5 . 2 . . 6 11 7 4 14 2 . . . . . . . . . . . . . 2 . 14 . . 47 8 Fabricators 12 | . . . . . . . . . . . . . . . . 5 . . . . 3 . . . . . . . . 4 . Repair Stations 6 | . . . 2 . . . . . . 4 . . . . . . . . . . . . . . . . . . . . . Recycling Units 7 | . 1 . 2 . . . . . . 1 . . . . . 2 . . . . . . . . . . . . 1 . . Scanalyzers 18 | . . . . . . . . . 5 . . . . . . 5 . . . . . . . . . . . . 3 5 . Garrison Access 10 | . . . . . . . 2 . . 3 . . . . . . . . . . . . . . . 2 . . . 3 . Terminal Hacks 68 | . 1 1 1 1 2 3 4 2 2 6 . . . . . . . . 22 . . . . . . . 3 . . 18 2 Record 8 | . . . . . 1 1 . . . . . . . . . . . . 6 . . . . . . . . . . . . Part Schematic 13 | . . . . . . . 1 . . . . . . . . . . . 11 . . . . . . . . . . 1 . Robot Schematic 2 | . . . . . . . . . . . . . . . . . . . 2 . . . . . . . . . . . . Robot Analysis 4 | . . . . . . 2 1 . 1 . . . . . . . . . . . . . . . . . . . . . . Prototype ID Bank 7 | . 1 . 1 . . . . . . . . . . . . . . . 3 . . . . . . . 1 . . 1 . Open Door 6 | . . 1 . 1 . . . 1 . 2 . . . . . . . . . . . . . . . . . . . . 1 Level Access Points 2 | . . . . . . . . . . . . . . . . . . . . . . . . . . . . . . 1 1 Branch Access Points 1 | . . . . . . . . . . . . . . . . . . . . . . . . . . . . . . 1 . Emergency Access Points 1 | . . . . . . . . 1 . . . . . . . . . . . . . . . . . . . . . . . Terminal Index 1 | . . . . . . . . . . . . . . . . . . . . . . . . . . . . . . 1 . Fabricator Index 1 | . . . . . . . . . . . . . . . . . . . . . . . . . . . . . . 1 . Repair Station Index 1 | . . . . . . . . . . . . . . . . . . . . . . . . . . . . . . 1 . Alert Level 1 | . . . . . . . . . . . . . . . . . . . . . . . . . . . . . . 1 . Unreport Threat 6 | . . . . . . . 1 . . 2 . . . . . . . . . . . . . . . . 1 . . 2 . Locate Traps 2 | . . . . . . . . . . 1 . . . . . . . . . . . . . . . . . . . 1 . Maintenance Status 1 | . . . . . . . . . . . . . . . . . . . . . . . . . . . . . . 1 . Patrol Status 1 | . . . . . . . . . . . . . . . . . . . . . . . . . . . . . . 1 . Hauler Manifests 4 | . . . . . . . 1 . 1 1 . . . . . . . . . . . . . . . . . . . 1 . Registered Components 1 | . . . . . . . . . . . . . . . . . . . . . . . . . . . . . . 1 . Zone Layout 4 | . . . . . . . . . . . . . . . . . . . . . . . . . . . 1 . . 3 . Proto ID Catalog 1 | . . . . . 1 . . . . . . . . . . . . . . . . . . . . . . . . . . Fabricator Hacks 6 | . . . . . . . . . . . . . . . . 2 . . . . 1 . . . . . . . . 3 . Network Status 3 | . . . . . . . . . . . . . . . . 1 . . . . 1 . . . . . . . . 1 . Load Schematic 1 | . . . . . . . . . . . . . . . . . . . . . . . . . . . . . . 1 . Build 2 | . . . . . . . . . . . . . . . . 1 . . . . . . . . . . . . . 1 . Repair Station Hacks 4 | . . . 1 . . . . . . 3 . . . . . . . . . . . . . . . . . . . . . Scan Component 3 | . . . 1 . . . . . . 2 . . . . . . . . . . . . . . . . . . . . . Repair 1 | . . . . . . . . . . 1 . . . . . . . . . . . . . . . . . . . . . Recycling Unit Hacks 1 | . . . . . . . . . . . . . . . . 1 . . . . . . . . . . . . . . . Retrieve Components 1 | . . . . . . . . . . . . . . . . 1 . . . . . . . . . . . . . . . Scanalyzer 10 | . . . . . . . . . 4 . . . . . . 3 . . . . . . . . . . . . 1 2 . Insert Component 1 | . . . . . . . . . . . . . . . . 1 . . . . . . . . . . . . . . . Retrieve Study 9 | . . . . . . . . . 4 . . . . . . 2 . . . . . . . . . . . . 1 2 . Garrison Access Hacks 4 | . . . . . . . 1 . . . . . . . . . . . . . . . . . . 1 . . . 2 . Unlock Access 1 | . . . . . . . 1 . . . . . . . . . . . . . . . . . . . . . . . . Seal Access 3 | . . . . . . . . . . . . . . . . . . . . . . . . . . 1 . . . 2 . Unauthorized Hacks 14 | . 1 . 2 . . . . 1 . 3 . . . . . 2 . . . . . . . . 1 . 1 . . 3 . Terminals 7 | . . . . . . . . 1 . 2 . . . . . . . . . . . . . . 1 . 1 . . 2 . Track 1 | . . . . . . . . . . . . . . . . . . . . . . . . . . . 1 . . . . Botnet 3 | . . . . . . . . 1 . 1 . . . . . . . . . . . . . . . . . . . 1 . Operators 2 | . . . . . . . . . . 1 . . . . . . . . . . . . . . . . . . . 1 . Sabotage 1 | . . . . . . . . . . . . . . . . . . . . . . . . . 1 . . . . . . Fabricators 3 | . . . . . . . . . . . . . . . . 2 . . . . . . . . . . . . . 1 . Prioritize 1 | . . . . . . . . . . . . . . . . . . . . . . . . . . . . . . 1 . Liberate 1 | . . . . . . . . . . . . . . . . 1 . . . . . . . . . . . . . . . Haulers 1 | . . . . . . . . . . . . . . . . 1 . . . . . . . . . . . . . . . Repair Stations . | . . . . . . . . . . . . . . . . . . . . . . . . . . . . . . . . Recycling Units 4 | . 1 . 2 . . . . . . 1 . . . . . . . . . . . . . . . . . . . . . Tunnel 4 | . 1 . 2 . . . . . . 1 . . . . . . . . . . . . . . . . . . . . . Scanalyzers . | . . . . . . . . . . . . . . . . . . . . . . . . . . . . . . . . Garrison Access . | . . . . . . . . . . . . . . . . . . . . . . . . . . . . . . . . Data Cores Recovered 4 | . . . 1 . . . . . . 1 . . . . . . . . . . . . . . . . . . 2 . . Used 1 | . . . . . . . . . . 1 . . . . . . . . . . . . . . . . . . . . . Hacking Detections 40 | . 1 . 2 . . 2 5 3 3 6 1 . . . . 1 . . . . 1 . . . . . 3 . 2 9 1 Full Trace Events 2 | . . . . . . . . . 1 1 . . . . . . . . . . . . . . . . . . . . . Feedback Events . | . . . . . . . . . . . . . . . . . . . . . . . . . . . . . . . . Feedback Blocked . | . . . . . . . . . . . . . . . . . . . . . . . . . . . . . . . . Robot Schematics Acquired 6 | . . . . . . . . . . . . . . 4 . . . . 2 . . . . . . . . . . . . Robots Built . | . . . . . . . . . . . . . . . . . . . . . . . . . . . . . . . . Authchips . | . . . . . . . . . . . . . . . . . . . . . . . . . . . . . . . . Time . | . . . . . . . . . . . . . . . . . . . . . . . . . . . . . . . . Total Robot Build Rating . | . . . . . . . . . . . . . . . . . . . . . . . . . . . . . . . . Part Schematics Acquired 28 | . . . . . . . 1 . . . . . . 15 . . . . 11 . . . . . . . . . . 1 . Parts Built 3 | . . . . . . . . . . . . . . . . 2 . . . . . . . . . . . . . 1 . Authchips 1 | . . . . . . . . . . . . . . . . . . . . . . . . . . . . . . 1 . Time 173 | . . . . . . . . . . . . . . . . 117 . . . . . . . . . . . . . 56 . Total Part Build Rating 20 | . . . . . . . . . . . . . . . . 14 . . . . . . . . . . . . . 6 . Part Studies Acquired 9 | . . . . . . . . . 4 . . . . . . 2 . . . . . . . . . . . . 1 2 . Parts Repaired 1 | . . . . . . . . . . 1 . . . . . . . . . . . . . . . . . . . . . Time 53 | . . . . . . . . . . 53 . . . . . . . . . . . . . . . . . . . . . Parts Recycled . | . . . . . . . . . . . . . . . . . . . . . . . . . . . . . . . . Recycled Matter . | . . . . . . . . . . . . . . . . . . . . . . . . . . . . . . . . Retrieved Matter . | . . . . . . . . . . . . . . . . . . . . . . . . . . . . . . . . Retrieved Components 10 | . . . . . . . . . . . . . . . . 10 . . . . . . . . . . . . . . . Parts Scanalyzed . | . . . . . . . . . . . . . . . . . . . . . . . . . . . . . . . . Part Schematics Acquired . | . . . . . . . . . . . . . . . . . . . . . . . . . . . . . . . . Parts Damaged . | . . . . . . . . . . . . . . . . . . . . . . . . . . . . . . . . Bothacking | -11 -10 -10 -9 -9 -9 -8 -8 -8 -8 -8 -7 -7 -7 -7 -6 -6 -6 -6 -6 -5 -5 -5 -5 -5 -5 -4 -4 -4 -3 -2 -1 ------------ Run | Yrd Mat Min Mat Min Exi Min Mat Gar Mat Sto Fac Low Low Zio Pro Fac Low Low Dat Pro Fac Ext Cet Arc Hub Fac Arm Lab Res Res Acc Used RIF Installer . | . . . . . . . . . . . . . . . . . . . . . . . . . . . . . . . . Robots Hacked 8 | . . . . . 3 1 . . . . . . . . . . . . . . . . . 2 . . . . . . 2 Non-combat 4 | . . . . . 2 1 . . . . . . . . . . . . . . . . . 1 . . . . . . . Combat 2 | . . . . . 1 . . . . . . . . . . . . . . . . . . 1 . . . . . . . Robot Hacks Applied 6 | . . . . . 3 1 . . . . . . . . . . . . . . . . . 2 . . . . . . . parse_system 5 | . . . . . 3 1 . . . . . . . . . . . . . . . . . 1 . . . . . . . check_alert 1 | . . . . . . . . . . . . . . . . . . . . . . . . 1 . . . . . . . Manual 2 | . . . . . . . . . . . . . . . . . . . . . . . . . . . . . . . 2 Relay Couplers Released 12 | . . . . . . . . 11 . . . . . . . 1 . . . . . . . . . . . . . . . Machine Destruction 12 | . . . . . . . . 11 . . . . . . . 1 . . . . . . . . . . . . . . . Fabnet Peak Effective % . | . . . . . . . . . . . . . . . . . . . . . . . . . . . . . . . . Robots Rewired 25 | . . . . . . . . 3 . . . . . . . . . . . . . 17 . . . 1 4 . . . . Allies Hacked . | . . . . . . . . . . . . . . . . . . . . . . . . . . . . . . . . Hacks Repelled . | . . . . . . . . . . . . . . . . . . . . . . . . . . . . . . . . Allies | -11 -10 -10 -9 -9 -9 -8 -8 -8 -8 -8 -7 -7 -7 -7 -6 -6 -6 -6 -6 -5 -5 -5 -5 -5 -5 -4 -4 -4 -3 -2 -1 -------- Run | Yrd Mat Min Mat Min Exi Min Mat Gar Mat Sto Fac Low Low Zio Pro Fac Low Low Dat Pro Fac Ext Cet Arc Hub Fac Arm Lab Res Res Acc Total Allies 48 | . . 4 . . . . . 3 . . . . . . . . . . . . . 28 5 . . 1 4 . . . 3 Largest Group 17 | . . 3 3 . . . . 3 . . . . . . . . . . . . . 12 17 16 15 1 3 . . . 2 Highest-Rated Group 962 | . . 40 40 . . . . 76 . . . . . . . . . . . . . 487 962 803 778 42 182 . . . 438 Highest-Rated Ally 219 | . . 31 16 . . . . 31 . . . . . . . . . . . . . 159 159 96 96 42 64 . . . 219 Initial Warlord ECA Mod 6 | . . . . . . . . . 6 6 5 5 5 5 4 4 4 4 4 3 3 3 3 3 3 2 2 2 1 . . Total Orders 28 | . . . . . . . . . . . . . . . . 1 . . . . 1 10 4 . 5 1 3 . . . 3 STAY 12 | . . . . . . . . . . . . . . . . . . . . . . 1 3 . 4 1 3 . . . . FOLLOW 2 | . . . . . . . . . . . . . . . . . . . . . . 1 1 . . . . . . . . RETURN 14 | . . . . . . . . . . . . . . . . 1 . . . . 1 8 . . 1 . . . . . 3 Ally Attacks 404 | . . 3 36 . . . . 14 . . . . . . . . . . . . . 156 37 28 82 4 . . 1 . 43 Total Damage 9387 | . . 20 331 . . . . 246 . . . . . . . . . . . . . 2539 767 981 2360 76 . . 5 . 2062 Kills 63 | . . . 5 . . . . 4 . . . . . . . . . . . . . 17 8 4 12 . . . . . 13 Allies Corrupted 1 | . . . . . . . . . . . . . . . . . . . . . . . . . 1 . . . . . . Allies Melted . | . . . . . . . . . . . . . . . . . . . . . . . . . . . . . . . . Intel | -11 -10 -10 -9 -9 -9 -8 -8 -8 -8 -8 -7 -7 -7 -7 -6 -6 -6 -6 -6 -5 -5 -5 -5 -5 -5 -4 -4 -4 -3 -2 -1 ------- Run | Yrd Mat Min Mat Min Exi Min Mat Gar Mat Sto Fac Low Low Zio Pro Fac Low Low Dat Pro Fac Ext Cet Arc Hub Fac Arm Lab Res Res Acc Active Infowar (turns) 14348 | 33 714 751 160 222 . . . . . . 193 824 547 1178 845 120 1079 829 121 316 330 . . . 289 744 858 827 2177 736 455 Optics 5715 | . . . . . . . . . . . 193 824 547 1178 845 120 1068 829 111 . . . . . . . . . . . . IFF 2159 | . . . . . . . . . . . . . . . . . 1072 667 104 316 . . . . . . . . . . . Terrain 2416 | . . . . . . . . . . . . . . . . . . . 1 . 330 . . . . 223 75 . 870 462 455 Seismic 1880 | 33 714 751 160 222 . . . . . . . . . . . . . . . . . . . . . . . . . . . Jamming 5164 | . . . . . . . . . . . . . . . . . . . . . . . . . 289 744 858 827 2172 274 . Robot Analysis Total 4 | . . . . . . 2 1 . 1 . . . . . . . . . . . . . . . . . . . . . . Derelict Logs Recovered 13 | . . 1 . 2 . . . . . . . 2 . 1 2 . 2 2 . 1 . . . . . . . . . . . Drone Launches 32 | . . . . . . . . . . . . . . . . 1 . . . . 1 8 . . 1 . . . 1 . 20 Drone Recoveries 29 | . . . . . . . . . . . . . . . . 1 . . . . 1 8 . . 1 . . . 1 . 17 Exploration | -11 -10 -10 -9 -9 -9 -8 -8 -8 -8 -8 -7 -7 -7 -7 -6 -6 -6 -6 -6 -5 -5 -5 -5 -5 -5 -4 -4 -4 -3 -2 -1 ------------- Run | Yrd Mat Min Mat Min Exi Min Mat Gar Mat Sto Fac Low Low Zio Pro Fac Low Low Dat Pro Fac Ext Cet Arc Hub Fac Arm Lab Res Res Acc Turns Passed 30061 | 129 714 755 1125 2218 380 1082 651 1017 433 795 616 824 547 1178 845 1559 1079 829 964 431 514 1554 324 1600 673 744 1139 827 2211 1143 1161 Spaces Moved 17438 | 38 455 518 704 778 294 534 381 624 263 511 502 650 459 1038 653 1089 907 672 384 335 297 907 176 220 472 397 598 266 1028 721 567 Core . | . . . . . . . . . . . . . . . . . . . . . . . . . . . . . . . . Treads . | . . . . . . . . . . . . . . . . . . . . . . . . . . . . . . . . Legs 17438 | 38 455 518 704 778 294 534 381 624 263 511 502 650 459 1038 653 1089 907 672 384 335 297 907 176 220 472 397 598 266 1028 721 567 Wheels . | . . . . . . . . . . . . . . . . . . . . . . . . . . . . . . . . Hover . | . . . . . . . . . . . . . . . . . . . . . . . . . . . . . . . . Flight . | . . . . . . . . . . . . . . . . . . . . . . . . . . . . . . . . Fastest Speed 100 | 120 120 120 120 120 120 120 120 112 112 108 111 112 108 111 111 109 112 112 107 119 119 120 120 120 120 117 117 120 112 103 100 Average Speed 117 | 120 120 120 120 144 126 146 120 114 113 110 111 112 111 111 111 111 112 112 113 119 119 120 120 120 120 117 118 120 113 105 113 Slowest Speed 190 | 120 190 120 190 190 190 190 120 120 120 185 112 112 112 113 111 113 112 112 183 119 120 120 120 120 120 117 120 120 120 112 184 Overloaded Moves . | . . . . . . . . . . . . . . . . . . . . . . . . . . . . . . . . Propulsion Burnouts . | . . . . . . . . . . . . . . . . . . . . . . . . . . . . . . . . Robots Hopped 1 | . . . . . . . . . . . . . . . . . . . . . . . . . 1 . . . . . . Potential Cave-ins . | . . . . . . . . . . . . . . . . . . . . . . . . . . . . . . . . Cave-ins Triggered . | . . . . . . . . . . . . . . . . . . . . . . . . . . . . . . . . Exploration Rate (%) 57 | 4 59 94 50 100 66 97 40 85 26 66 12 77 61 86 88 31 94 77 82 61 7 81 56 83 45 10 39 88 25 27 14 Regions Visited 31 Branch Regions 19 Pre-discovered Areas 9 | . 1 . 2 . 1 . . . . 1 . 2 . . 1 . . . 1 . . . . . . . . . . . . Known Exits Taken 7 | . . . . . . . 1 . 1 1 1 . . . . 1 . . . . . . . . . . . . 1 1 . Unknown Exits Taken 23 | 1 1 1 1 1 1 1 . . . . . 1 1 1 1 . 1 1 1 1 1 1 1 1 1 1 1 1 . . . Scrap Searched 25 | . . 1 . 1 . 1 . . . . . 2 6 3 2 . 4 3 . 2 . . . . . . . . . . . Spaces Dug 100 | . . 2 . . . . . . . . . . . . . 3 3 . 10 . 1 2 . . . 2 20 . 5 45 7 Terrain Destroyed 936 | . . 3 . 26 . 29 5 100 . . 38 39 . . 18 61 8 34 10 1 1 72 2 . 1 54 231 3 13 130 57 Melee 13 | . . . . . . . . . . . . . . . . 2 . . 10 . 1 . . . . . . . . . . Projectile 175 | . . 3 . . . . 5 . . . . . . . . 14 8 1 . 1 . 15 2 . 1 22 38 3 11 41 10 AOE 743 | . . . . 26 . 29 . 100 . . 38 39 . . 18 45 . 33 . . . 57 . . . 32 192 . . 89 45 Terrain Rammed . | . . . . . . . . . . . . . . . . . . . . . . . . . . . . . . . . Walls Destroyed . | . . . . . . . . . . . . . . . . . . . . . . . . . . . . . . . . Machines Disabled . | . . . . . . . . . . . . . . . . . . . . . . . . . . . . . . . . Actions | -11 -10 -10 -9 -9 -9 -8 -8 -8 -8 -8 -7 -7 -7 -7 -6 -6 -6 -6 -6 -5 -5 -5 -5 -5 -5 -4 -4 -4 -3 -2 -1 --------- Run | Yrd Mat Min Mat Min Exi Min Mat Gar Mat Sto Fac Low Low Zio Pro Fac Low Low Dat Pro Fac Ext Cet Arc Hub Fac Arm Lab Res Res Acc Total 25289 | 97 536 622 866 1798 302 738 478 813 339 661 554 706 477 1062 759 1423 967 743 779 365 452 1354 246 1527 578 630 861 727 1935 1008 886 Wait 5253 | 40 20 80 24 950 . 127 29 70 31 86 1 30 6 . 97 148 9 44 255 14 93 187 20 1280 87 121 55 380 744 158 67 Move 17406 | 37 454 517 703 777 293 533 381 623 262 510 501 649 458 1037 652 1088 906 671 383 334 296 906 175 219 470 396 597 265 1027 720 566 Hop 1 | . . . . . . . . . . . . . . . . . . . . . . . . . 1 . . . . . . Pick Up 183 | 2 7 1 19 4 1 . 4 5 2 . 15 1 . 3 . 16 2 2 21 . 6 10 5 . 3 9 3 14 10 9 9 Fast Attach 114 | 1 . 2 2 . . 1 3 3 5 2 4 . 1 8 . 6 1 2 13 1 6 4 4 3 . 3 3 3 19 5 9 Attach 94 | . . . 5 2 . 2 4 4 . . 3 . . . . 8 1 3 11 . 6 6 4 . . 8 1 3 2 4 17 Detach 37 | . . . . . . . 2 . . . . . . . . 4 1 1 4 . 5 3 . 4 . 2 . 2 1 2 6 Swap 271 | . 4 3 21 13 1 14 3 17 3 1 3 4 1 2 3 13 4 4 3 4 5 11 4 . 5 10 27 3 18 33 34 Drop 264 | 4 4 3 24 7 4 10 7 10 9 2 17 1 1 11 . 17 3 2 21 1 9 11 10 3 4 7 5 13 27 8 9 Fire 1236 | 13 42 13 62 39 . 43 44 56 27 45 5 21 10 1 7 109 22 13 2 11 16 95 10 . 8 60 99 44 83 69 167 Melee 106 | . . . . . 3 1 . . . . . . . . . 3 . . 66 . 2 . 14 17 . . . . . . . Ram . | . . . . . . . . . . . . . . . . . . . . . . . . . . . . . . . . Kick 101 | . 5 3 6 6 . 7 1 . . 10 5 . . . . 11 16 1 . . 8 6 . 1 . 9 . . 4 . 2 Crush . | . . . . . . . . . . . . . . . . . . . . . . . . . . . . . . . . Escape Stasis 19 | . . . . . . . . 10 . 5 . . . . . . . . . . . 4 . . . . . . . . . Rewire 204 | . . . . . . . . 15 . . . . . . . . 2 . . . . 111 . . . 5 71 . . . . Trap . | . . . . . . . . . . . . . . . . . . . . . . . . . . . . . . . . Miscellaneous . | . . . . . . . . . . . . . . . . . . . . . . . . . . . . . . . . Route ------- -11/Scrapyard -10/Materials (discovered 4 exits: *Mat x2 / *Min x2) -10/Mines (discovered 2 exits: *Mat x2) -9/Materials (discovered 2 exits: *Mat / *Min) -9/Mines (discovered 4 exits: *Mat x2 / *Exi / [*Zio]) -9/Exiles -8/Mines (discovered 2 exits: *Mat x2) -8/Materials (discovered 4 exits: *Fac x2 / *Sto / Gar) -8/Garrison (discovered 3 exits: *Mat x3) -8/Materials -8/Storage -7/Factory -7/Lower Caves -7/Lower Caves -7/Zion -6/Proximity Caves -6/Factory -6/Lower Caves -6/Lower Caves (discovered 2 exits: *Fac / *Dat) -6/Data Miner -5/Proximity Caves -5/Factory -5/Extension (discovered 2 exits: *Fac / *Cet) -5/Cetus (discovered 2 exits: *Fac / [*Arc]) -5/Archives (discovered 3 exits: *Fac / *Hub x2) -5/Hub_04(d) -4/Factory -4/Armory (discovered 2 exits: Res / [*Lab]) -4/Lab -3/Research -2/Research (discovered 5 exits: *Acc x3 / Tes x2) -1/Access To Epsilon Eridani History --------- Turn | Location | Event 13 | -11/Scrapyard | Discovered new exit (range 3) 130 | -11/Scrapyard | Entered Materials 220 | -10/Materials | Discovered new exit (range 9) 302 | -10/Materials | Build established: Mutant 307 | -10/Materials | Discovered new exit (range 15) 547 | -10/Materials | Discovered new exit (range 8) 594 | -10/Materials | Discovered new exit (range 7) 844 | -10/Materials | Entered Mines 890 | -10/Mines | Met a Derelict testing a Signal Generator 999 | -10/Mines | Learned Materials security intel 1120 | -10/Mines | Found the Drone Emporium 1124 | -10/Mines | Found Prototype Device 1124 | -10/Mines | Identified Splice Drone Bay 1256 | -10/Mines | A weapon hastily lodged in a ceiling crevice suddenly fell to the ground 1506 | -10/Mines | Discovered new exit (range 7) 1524 | -10/Mines | Assisted by bots powering up and referring to "LRC-V3" 1568 | -10/Mines | Discovered new exit (range 8) 1599 | -10/Mines | Entered Materials 1599 | -9/Materials | Accompanied by 3 allies 1599 | -9/Materials | Evolved 2 slots: Propulsion x1, Weapon x1 1948 | -9/Materials | Discovered new exit (range 12) 2268 | -9/Materials | Build established: Scavenger-Gunner 2537 | -9/Materials | Discovered new exit (range 10) 2724 | -9/Materials | Entered Mines 2776 | -9/Mines | Met a Derelict who couldn't figure out how to use a Trap Extractor 3655 | -9/Mines | Found Powered Armor 3693 | -9/Mines | Learned Materials garrison access intel 3869 | -9/Mines | Deemed a non-threat by the Exiles lab entrance 3869 | -9/Mines | Discovered new exit (range 5) 3991 | -9/Mines | Discovered new exit (range 3) 3992 | -9/Mines | A Derelict revealed a hidden shortcut to a safe place 4040 | -9/Mines | Discovered new exit (range 4) 4093 | -9/Mines | Learned 4 Materials zone layouts 4128 | -9/Mines | Assembled infested the area 4133 | -9/Mines | Assisted by a Guerilla fighting off Assembled 4341 | -9/Mines | Destroyed 8 combat bots 4418 | -9/Mines | Destroyed 7 combat bots 4942 | -9/Mines | Entered Exiles 4994 | -9/Exiles | Met 8R-AWN 5015 | -9/Exiles | Met EX-HEX 5064 | -9/Exiles | Met EX-DEC 5096 | -9/Exiles | Learned location of Zion (-7) 5117 | -9/Exiles | Met EX-BIN 5134 | -9/Exiles | Aligned with FarCom system 5135 | -9/Exiles | Given EX-Vault access code 5165 | -9/Exiles | Opened EX-Vault 5177 | -9/Exiles | Found XL Autogun Array 5200 | -9/Exiles | Warned to stay clear of 0b10 Research branches 5293 | -9/Exiles | Build established: Scavenger-Mutant 5309 | -9/Exiles | Discovered new exit (range 14) 5322 | -9/Exiles | Left Exiles lab with XL Autogun Array 5322 | -9/Exiles | Entered Mines 5547 | -8/Mines | Found a Scrap Suit stashed away for nefarious purposes 5637 | -8/Mines | Destroyed 7 combat bots 5702 | -8/Mines | Central database locked down 5729 | -8/Mines | Build established: Scavenger-Skirmisher 5851 | -8/Mines | Core integrity fell below 50% 5938 | -8/Mines | Discovered new exit (range 5) 6151 | -8/Mines | Discovered new exit (range 12) 6404 | -8/Mines | Entered Materials 6404 | -8/Materials | Evolved 2 slots: Propulsion x1, Utility x1 6405 | -8/Materials | Identified exit to Storage 6405 | -8/Materials | Identified exit to Factory 6406 | -8/Materials | Loaded intel: 1 garrison access location 7033 | -8/Materials | Discovered exit to Factory (range 10) 7055 | -8/Materials | Identified exit to Garrison 7055 | -8/Materials | Entered Garrison 7067 | -8/Garrison | Triggered checkpoint 7105 | -8/Garrison | Garrison Relay disabled 7311 | -8/Garrison | Phase Generator disabled 7326 | -8/Garrison | Triggered checkpoint 7331 | -8/Garrison | Triggered checkpoint 7395 | -8/Garrison | Lost 3 allies 7403 | -8/Garrison | Destroyed 10 combat bots 7466 | -8/Garrison | Discovered new exit (range 14) 7516 | -8/Garrison | Triggered checkpoint 7601 | -8/Garrison | Garrison Relay disabled 7643 | -8/Garrison | Triggered checkpoint 7698 | -8/Garrison | Triggered checkpoint 7763 | -8/Garrison | Garrison Relay disabled 7784 | -8/Garrison | Discovered new exit (range 14) 7913 | -8/Garrison | Triggered checkpoint 8042 | -8/Garrison | Discovered new exit (range 10) 8072 | -8/Garrison | Entered Materials 8073 | -8/Materials | Discovered exit to Storage (range 8) 8472 | -8/Materials | First assault squad dispatched 8505 | -8/Materials | Entered Storage 8687 | -8/Storage | Repaired Broken Carbon-fiber Leg+ 8751 | -8/Storage | Garrison activated, responded to threat 9009 | -8/Storage | Discovered exit to Factory (range 15) 9300 | -8/Storage | Entered Factory 9300 | -7/Factory | Evolved 2 slots: Propulsion x1, Utility x1 9302 | -7/Factory | Discovered new exit (range 13) 9432 | -7/Factory | Identified exit to Lower Caves 9645 | -7/Factory | Build established: Tank 9916 | -7/Factory | Entered Lower Caves 9951 | -7/Lower Caves | Met a Warlord Commander 9952 | -7/Lower Caves | Learned location of Warlord (-4) 9953 | -7/Lower Caves | Warlord Commander delivered Encrypted Comm Array 9986 | -7/Lower Caves | Learned Factory terminal intel 10177 | -7/Lower Caves | Encountered a Warlord checkpoint 10221 | -7/Lower Caves | Attracted the attention of an 0b10 checkpoint 10432 | -7/Lower Caves | Learned location of Extension (-5) 10488 | -7/Lower Caves | Discovered new exit (range 5) 10740 | -7/Lower Caves | Entered another Lower Caves area 11127 | -7/Lower Caves | Discovered new exit (range 11) 11287 | -7/Lower Caves | Entered Zion 11329 | -7/Zion | System corruption cleaned by Quarantine Array 11499 | -7/Zion | Discovered new exit (range 8) 11676 | -7/Zion | Learned Factory stockpile data 11761 | -7/Zion | Learned Factory emergency access door positions 12107 | -7/Zion | Rebuked by Imprinter 12163 | -7/Zion | Given the Hacking Drone Bay 12168 | -7/Zion | Found Prototype Device 12429 | -7/Zion | Found Prototype Special Weapon 12429 | -7/Zion | Identified RU-N14's Throwing Claymores 12437 | -7/Zion | Found RU-N14's Throwing Claymores 12439 | -7/Zion | Found RU-N14's Throwing Claymores 12465 | -7/Zion | Entered Proximity Caves 13089 | -6/Proximity Caves | Received a Behemoth hack from an annoying Tinkerer 13231 | -6/Proximity Caves | Discovered new exit (range 7) 13293 | -6/Proximity Caves | Learned 4 Factory zone layouts 13310 | -6/Proximity Caves | Entered Factory 13310 | -6/Factory | Evolved 2 slots: Power x1, Weapon x1 13314 | -6/Factory | Loaded intel: 26 terminal locations 13565 | -6/Factory | Central database locked down 13565 | -6/Factory | Identified Hacking Drone Bay 14028 | -6/Factory | Build established: Scavenger-Tank 14217 | -6/Factory | Fabricated Adv. Reaction Control System? 14278 | -6/Factory | Discovered new exit (range 15) 14387 | -6/Factory | Identified exit to Lower Caves 14737 | -6/Factory | Garrison activated, responded to threat 14775 | -6/Factory | Destroyed 7 combat bots 14869 | -6/Factory | Entered Lower Caves 15165 | -6/Lower Caves | Learned Factory emergency access door positions 15186 | -6/Lower Caves | Build established: Scavenger-Skirmisher 15211 | -6/Lower Caves | Learned Factory emergency access door positions 15362 | -6/Lower Caves | Attacked by a delusional Derelict stockpiling parts 15905 | -6/Lower Caves | Discovered new exit (range 10) 15948 | -6/Lower Caves | Entered another Lower Caves area 15990 | -6/Lower Caves | Learned Factory terminal intel 16065 | -6/Lower Caves | Discovered new exit (range 7) 16521 | -6/Lower Caves | Learned Factory emergency access door positions 16594 | -6/Lower Caves | Discovered new exit (range 19) 16698 | -6/Lower Caves | Encountered a Warlord checkpoint 16777 | -6/Lower Caves | Entered Data Miner 16777 | -6/Data Miner | Discovered new exit (range 6) 16793 | -6/Data Miner | Met Data Miner 16826 | -6/Data Miner | Learned location of Section 7 (-3) 16826 | -6/Data Miner | Acquired the access code to Warlord's prototype stash 16836 | -6/Data Miner | Received God Mode back door access code from Data Miner 16921 | -6/Data Miner | Destroyed Data Miner 16926 | -6/Data Miner | Data Conduit disabled 17080 | -6/Data Miner | Build established: Scavenger-Mutant 17328 | -6/Data Miner | Lost 4 parts (1p2n1u) 17572 | -6/Data Miner | Lost 3 parts (1p2n) 17615 | -6/Data Miner | Found Prototype Hackware 17617 | -6/Data Miner | Found Prototype Hackware 17621 | -6/Data Miner | Found Prototype Hackware 17665 | -6/Data Miner | Found Prototype Device 17665 | -6/Data Miner | Identified Exp. Thermal Shield 17741 | -6/Data Miner | Entered Proximity Caves 18108 | -5/Proximity Caves | Discovered new exit (range 5) 18125 | -5/Proximity Caves | Learned Factory stockpile data 18150 | -5/Proximity Caves | Build established: Scavenger-Tank 18172 | -5/Proximity Caves | Entered Factory 18172 | -5/Factory | Evolved 2 slots: Utility x2 18175 | -5/Factory | Loaded intel: 28 terminal locations 18352 | -5/Factory | Identified Deep Network Scanner 18386 | -5/Factory | Identified System Mapper 18391 | -5/Factory | Identified Quantum Router 18544 | -5/Factory | Discovered new exit (range 5) 18686 | -5/Factory | Entered Extension 18897 | -5/Extension | Found Imp. Powered Armor 19064 | -5/Extension | Rescued a captive Derelict 19098 | -5/Extension | Rescued a captive Derelict 19099 | -5/Extension | Rescued a captive Derelict 19170 | -5/Extension | Rescued a captive Derelict 19171 | -5/Extension | Rescued a captive Derelict 19230 | -5/Extension | Rescued a captive Derelict 19311 | -5/Extension | Disrupted transfer network 19396 | -5/Extension | Spotted B-75 Beast 19402 | -5/Extension | Destroyed B-75 Beast 19427 | -5/Extension | Spotted B-75 Beast 19432 | -5/Extension | Destroyed B-75 Beast 19463 | -5/Extension | Lost 4 allies 19580 | -5/Extension | Rescued a captive Derelict 19581 | -5/Extension | Rescued a captive Derelict 19586 | -5/Extension | First assault squad dispatched 19625 | -5/Extension | Lost 5 allies 19722 | -5/Extension | Lost 3 allies 19729 | -5/Extension | Rescued a captive Derelict 19730 | -5/Extension | Rescued a captive Derelict 19907 | -5/Extension | Rescued A7 20177 | -5/Extension | Discovered new exit (range 10) 20178 | -5/Extension | Discovered new exit (range 6) 20240 | -5/Extension | Entered Cetus 20240 | -5/Cetus | Accompanied by 12 allies (A7) 20245 | -5/Cetus | Acquired a Cetus Manufacturing Module code from A7 20274 | -5/Cetus | Spotted Cetus Guard 20275 | -5/Cetus | Spotted Cetus Guard 20275 | -5/Cetus | Spotted Cetus Guard 20276 | -5/Cetus | Spotted Cetus Guard 20281 | -5/Cetus | Allies destroyed Cetus Guard 20283 | -5/Cetus | Allies destroyed Cetus Guard 20283 | -5/Cetus | Allies destroyed Cetus Guard 20285 | -5/Cetus | Allies destroyed Cetus Guard 20368 | -5/Cetus | Started Cetus Manufacturing Module 20383 | -5/Cetus | Discovered new exit (range 15) 20393 | -5/Cetus | Manufactured an Enhanced Grunt 20418 | -5/Cetus | Manufactured an Enhanced Grunt 20418 | -5/Cetus | Spotted Cetus Guard 20418 | -5/Cetus | Spotted Cetus Guard 20419 | -5/Cetus | Allies destroyed Cetus Guard 20422 | -5/Cetus | Allies destroyed Cetus Guard 20423 | -5/Cetus | Destroyed Cetus Guard 20426 | -5/Cetus | Destroyed Cetus Guard 20441 | -5/Cetus | Discovered new exit (range 15) 20443 | -5/Cetus | Manufactured an Enhanced Grunt 20448 | -5/Cetus | Met Revision 17 20468 | -5/Cetus | Manufactured an Enhanced Grunt 20493 | -5/Cetus | Manufactured an Enhanced Grunt 20545 | -5/Cetus | Murdered A7 20546 | -5/Cetus | Extracted ID and sensor layout for unrecognized location from A7's data core 20564 | -5/Cetus | Entered Archives 20564 | -5/Archives | Accompanied by 16 allies 20664 | -5/Archives | Discovered new exit (range 15) 20691 | -5/Archives | Discovered new exit (range 15) 20701 | -5/Archives | Discovered new exit (range 15) 20735 | -5/Archives | Build established: Commander-Tank 22164 | -5/Archives | Entered Hub_04(d) 22164 | -5/Hub_04(d) | Accompanied by 15 allies 22233 | -5/Hub_04(d) | Lost 3 allies 22607 | -5/Hub_04(d) | Build established: Scavenger-Tank 22637 | -5/Hub_04(d) | Lost 3 allies 22712 | -5/Hub_04(d) | Discovered new exit (range 5) 22784 | -5/Hub_04(d) | Network Hub disabled 22795 | -5/Hub_04(d) | Spotted Lightning 22822 | -5/Hub_04(d) | Spotted Lightning 22823 | -5/Hub_04(d) | Network Hub disabled 22837 | -5/Hub_04(d) | Entered Factory 22837 | -4/Factory | Evolved 2 slots: Propulsion x1, Utility x1 23395 | -4/Factory | Discovered new exit (range 14) 23581 | -4/Factory | Entered Armory 23891 | -4/Armory | Lost 3 allies 23965 | -4/Armory | Build established: Scavenger-Gunner 24081 | -4/Armory | First assault squad dispatched 24493 | -4/Armory | Discovered new exit (range 14) 24621 | -4/Armory | Discovered new exit (range 4) 24720 | -4/Armory | Entered Lab 24722 | -4/Lab | Discovered new exit (range 9) 24735 | -4/Lab | Hidden lab's door opened automatically 24735 | -4/Lab | Sensor layout match revealed 24736 | -4/Lab | Gained access to the hidden lab's interior 24801 | -4/Lab | Found Alien Artifact 24801 | -4/Lab | Identified Integrated Dissipator 24801 | -4/Lab | Installed Integrated Dissipator, increased core heat dissipation (+20) 24811 | -4/Lab | Found Alien Artifact 24811 | -4/Lab | Identified Core Expander 24811 | -4/Lab | Installed Core Expander, added new Propulsion slot 24826 | -4/Lab | Found Alien Artifact 24855 | -4/Lab | Found Prototype Energy Cannon 24970 | -4/Lab | Found Prototype Protection 24970 | -4/Lab | Identified Exp. Powered Armor 24977 | -4/Lab | Found Prototype Energy Gun 25496 | -4/Lab | Identified Hyp. EM Gauss Rifle 25498 | -4/Lab | Identified Warp Cannon 25547 | -4/Lab | Entered Research 25547 | -3/Research | Evolved 2 slots: Utility x2 25709 | -3/Research | Found Prototype Device 25709 | -3/Research | Identified Exp. EM Disruption Field 25747 | -3/Research | Revision forces began assault on 0b10 25805 | -3/Research | Met up with Revision 17++ 26014 | -3/Research | Build established: Scavenger-Tank 26129 | -3/Research | Found Fusion Bomb Launcher 26247 | -3/Research | Research terminal network offline 26464 | -3/Research | Spotted Striker 26592 | -3/Research | Found Imp. Powered Armor 26609 | -3/Research | Discovered new exit (range 14) 26627 | -3/Research | Identified exit to Research 26817 | -3/Research | Spotted Striker 26834 | -3/Research | Destroyed Striker 26838 | -3/Research | Lost 3 allies 26898 | -3/Research | Spotted Striker 26900 | -3/Research | Spotted Striker 26901 | -3/Research | Destroyed Striker 26904 | -3/Research | Destroyed Striker 27412 | -3/Research | Spotted Striker 27412 | -3/Research | Destroyed Striker 27720 | -3/Research | Spotted Striker 27729 | -3/Research | Destroyed Striker 27758 | -3/Research | Entered another Research area 27758 | -2/Research | Evolved 2 slots: Power x1, Utility x1 27841 | -2/Research | Central database locked down 27933 | -2/Research | Identified exit to Testing 28254 | -2/Research | Identified exit to Access 28460 | -2/Research | Fabricated Tesla Bomb Launcher (x1) 28557 | -2/Research | Destroyed 7 combat bots 28901 | -2/Research | Entered Access 28901 | -1/Access | Evolved 2 slots: Propulsion x1, Utility x1 28961 | -1/Access | Build established: Hacker-Skirmisher 29014 | -1/Access | Identified exit to Surface 29285 | -1/Access | Spotted B-99 Colossus 29320 | -1/Access | Destroyed B-99 Colossus 29333 | -1/Access | Found Prototype Ballistic Gun 29333 | -1/Access | Identified Multirail 29368 | -1/Access | Found Multirail 29448 | -1/Access | Garrison activated, responded to threat 29520 | -1/Access | Destroyed 22 combat bots 29522 | -1/Access | Lost 6 parts (1p3n2u) 29587 | -1/Access | Spotted B-99 Colossus 29630 | -1/Access | System corruption reached 10% 29651 | -1/Access | First assault squad dispatched 29655 | -1/Access | Lost 3 allies 29684 | -1/Access | Destroyed B-99 Colossus 29847 | -1/Access | Lost 3 parts (1p1n1u) 29861 | -1/Access | Spotted B-99 Colossus 29864 | -1/Access | Spotted B-99 Colossus 29865 | -1/Access | Befriended a Behemoth using the annoying Tinkerer's hack 29867 | -1/Access | Befriended a Behemoth using the annoying Tinkerer's hack 29984 | -1/Access | Destroyed 13 combat bots 30062 | *** | Escaped! Last Messages --------------- Scanner. 30039_ R-10 Processor collects Imp. Antigrav System. 30041_ B-99 Colossus exits siege mode. 30042_ R-10 Processor collects Sml. Battery. 30045_ U-05 Engineer lays Concrete. 30045_ Acquired Biometal Leg. 30046_ U-05 Engineer lays Concrete. 30048_ Acquired Biometal Leg. 30049_ U-05 Engineer lays Concrete. 30053_ 8HXSR JX 30053_ R-10 Processor collects Corrupted Hvy. Machine Gun. 30054_ U-05 Engineer lays Concrete. 30056_ Identified Imp. Quantum Reactor. 30056_ Faulty integration damages Quantum Reactor (-84). 30056_ U-05 Engineer lays Concrete. [Achievement: Leg Day] Map ----- +----------------------------------------------------+ | ?????????????????????????????????????????????????? | | ?????????????????????????????????????????????????? | | ?????????????????????????????????????????????????? | | ?????????????????????????????????????????????????? | | ?????????????????????????????????????????????????? | | ?????????????????????????????????????????????????? | | ?????????????????????????????????????????????????? | | ?????????????????????????????????????????????????? | | ?????????????????????????????????????????????????? | | ?????????????????????????????????????????????????? | | ?????????????????????????????????????????????????? | | ?????????????????????????????????????????????????? | | ?????????????????????????????????????????????????? | | ?????????????????????????????????????? ?????????? | | ##???????????????????????????????????? #????????? | | ???????????????????????????????????? #????????? | | ???????????????????????????????##?? #????????? | | ????????????????????????##??## ### #????????? | | ???????????????????????# ?# # #????????? | | ????????????????????????### # # #????????? | | ???#########??########## #####;# ##???????? | | ? ??# "??" % "#???????? | | ??? ?# "??" BB % % "#???????? | | ######+### """" BB BB *=;#???????? | | "!"" BB![ %%!![#????????? | | % % u"@ %!*!%[ ! % #????????? | | %[[%%% "" %==%!%= % ###??????? | | % " u=[[%== ; #??????? | | ########## % """ !%%%% % "##??????? | | ?????????# "?"" % !!==! !!!##???????? | | ?????????# "??" !u= ""%!##???????? | | ?????????#########??########## ###;;##!!#????????? | | ?????????????????????????????###?#####%!#????????? | | ?????????????????????????###########"#!%#????????? | | ?????????????????????????# ##%!#????????? | | ????????????############## ##! #????????? | | ????????????# # ! "# #????????? | | ????????????# # ##% #????????? | | ????????????# # ["# !#????????? | | ????????????# ###+##"%=**## *##???????? | | ????????????# # #######![%!#???????? | | ????????????# + !!*%= [![*#???????? | | ????????????# ==! # =[! %!![######### | | ??????????#?# =!! # #######%!%!!%!|! " | | ?????????#?## =! ###""" #########= " | | ?#????????#?# ##### #????# "" | | ?????#??##### ###?#### ####???# | | ???#??#???### ] #############?????## | | ?##????#####################?#?#########??### | | #?#??#?##?##??#?#?##?##?#?#??##############?# | +----------------------------------------------------+ Best States ------------- Heat Dissipation 126 Energy Generation 65 Energy Capacity 1190 Matter Stores 300 Matter Capacity 300 Sight Range 22 Terrain Scan Range 20 Terrain Scan Density 210 Jamming Range 14 Additional Mass Support 16 Armor Coverage 850 Resistance: KI 25 Resistance: TH 30 Resistance: EM 20 Point Defense Rating 240 Phase Shifting 15 Evasion (%) 84 Targeting Accuracy 8 Core Analysis 6 Recoil Reduction 6 Offensive Hacking 45 Authchip Count 1 Item Schematics ----------------- Hcp. Storage Unit | -8/Materials | Hacked Fission Core | -7/Zion | Archive Gauss Cannon | -7/Zion | Archive Energy Well | -7/Zion | Archive Adv. ECM Suite | -7/Zion | Archive Thermal Shield | -7/Zion | Archive Recalibrator | -7/Zion | Archive Hyp. Gauss Cannon | -7/Zion | Archive Lgt. Angular Momentum Engine | -7/Zion | Archive Med. Reactive Plating | -7/Zion | Archive Imp. Trap Extractor | -7/Zion | Archive Cloaking Device | -7/Zion | Archive Xenon Bombardment Thruster | -7/Zion | Archive Adv. Heat Sink | -7/Zion | Archive Dynamic Insulation System | -7/Zion | Archive Adv. Plasma Cannon | -7/Zion | Archive Combat Drone Bay | -6/Data Miner | Free Lgt. Regenerative Plating | -6/Data Miner | Free Cld. Gravmag System | -6/Data Miner | Free Imp. Thermal Defense Suite | -6/Data Miner | Free Tesla Bomb Launcher | -6/Data Miner | Free Adv. VSS Leg | -6/Data Miner | Free Adv. Thermal Generator | -6/Data Miner | Free Phase Gun | -6/Data Miner | Free Adv. Hardlight Generator | -6/Data Miner | Free Variable Charge Gun | -6/Data Miner | Free Biometal Medium Treads | -6/Data Miner | Free Enh. Nova Cannon | -2/Research | Hacked Robot Schematics ------------------ A-02 Transporter | -7/Zion | Archive T-07 Excavator | -7/Zion | Archive B-48 Gladiator | -7/Zion | Archive G-73 Enforcer | -7/Zion | Archive A-15 Conveyor | -6/Data Miner | Free R-10 Processor | -6/Data Miner | Free Fabricated ------------ Adv. Reaction Control System | x2 | -6/Factory | Preloaded Tesla Bomb Launcher | x1 | -2/Research | Authchip Repaired ---------- Carbon-fiber Leg | 40% | -8/Storage | Broken Studied --------- Carbon-fiber Leg | -8/Materials | Hacked Mni. Grenade Launcher | -8/Materials | Hacked Flak Gun | -8/Materials | Hacked Titanium Leg | -8/Materials | Hacked Imp. Carbon-fiber Leg | -6/Factory | Hacked Flexi-carbon Leg | -6/Factory | Hacked Centrium Leg | -3/Research | Hacked Shield Leg | -2/Research | Hacked Thunder Leg | -2/Research | Hacked Alien Tech Used ----------------- Integrated Dissipator Core Expander Achievements -------------- Leg Day Metal Spider Physics Protects Challenges ------------ None Game ------ Seed SystemTiamatFragment Manual? 0 Play Time 04:24:51 Cumulative 1282.4 hours Start 2025.12.26 @ 13:17:04 End 2025.12.27 @ 16:12:11 Sessions 3 Manual Loads 0 Difficulty Rogue Special Mode None Game No. 554 Rogue 553 Adventurer 1 Explorer 0 Win Type 0 Total 206 Types 62/17/31/5/2/1/78/4/4/2 Lore% 99 Gallery% 98 Achievement% 77 Wizard Run 0 Options --------- Layout 2 ASCII 0 Keyboard 1 Movement Numpad Keybinds 0 Fullscreen 0 Font 24/Terminus Map View 50x44 Zoom Use 0% Tactical HUD 1 Map Filters NONE Filters NONE Steam 1 RUN: f276a350-3ee9-487a-985c-3f8c72998c1f